Cogmind - Beta 14 @@@ ROGUE MODE // 2024.11.15 @ 08:07:59 Player: KURIIRI Result: Destroyed by M Guard with Hellfire Missile Launcher Performance ------------- Evolutions (9) 4500 Regions Visited (41) 8200 Robots Destroyed (690) 3450 Value Destroyed (35918) 35918 Prototype IDs (149) 2980 Alien Tech Used (1) 200 Bonus (18318) 18318 TOTAL SCORE: 73566 Bonus ------- High Alert Combat Kills 4794 Follower Combat Kills 1951 Entered Garrisons 1200 Network Hubs Disabled 600 Aligned with FarCom 300 Acquired ECA 300 Met Zhirov 300 Met Warlord at Base 500 MAIN.C Attacked Warlord 500 Warlord Defense Kills 898 Built Enhanced Grunts 300 A7 Reached Mainframe 300 Met R17 at Cetus 500 Read Decrypted Archives 300 Met R17 at Research 2000 Met Warlord at Research 2000 Invited to Help at Command 2000 Friendly Fire -425 Cogmind --------- Core Integrity 0/1600 Matter 300/300 Energy 100/100 System Corruption 13% Temperature Cool (9) Movement Core (50) Location -1/Command Parts ------- > --- POWER (3) -------- (None) > --- PROPULSION (7) --- (None) > --- UTILITY (13) ----- Experimental Core Analyzer Experimental System Shield > --- WEAPON (2) ------- (None) > --- INVENTORY (5) ---- Experimental Energy Well (600) Improved Remote Datajack Peak State ------------ > --- POWER ------------ Micro Antimatter Reactor Vortex Chain Reactor > --- PROPULSION ------- Improved Antigrav System Cooled Antigrav System Cooled Antigrav System Antigrav Array Antigrav Array > --- UTILITY ---------- Advanced Cooling System High-capacity Storage Unit Advanced Terrain Scan Processor Experimental Targeting Computer Experimental Core Analyzer Quantum Capacitor Advanced Hacking Suite Advanced Hacking Suite Advanced Hacking Suite Advanced Hacking Suite Advanced System Shield Experimental System Shield > --- WEAPON ----------- Compact HERF Cannon > --- INVENTORY -------- Reinforced Quantum Reactor Biometal Heavy Treads Advanced Heavy Siege Treads Improved Antigrav System Advanced Power Amplifier Advanced Coolant Injector Experimental Energy Well Advanced Phase Shifter Centrium Medium Armor Plating Centrium Medium Armor Plating Graphene Brace Advanced Variable Charge Gun Compact HERF Cannon Vortex Cannon Enhanced Nova Cannon Enhanced Nova Cannon Gamma Bomb Array Improved Remote Datajack [Rating: 188] Favorites ----------- Power Micro Fission Core Engine Deuterium Engine Power Core Micro Fission Core Reactor Micro Antimatter Reactor Propulsion Gravmag Array Treads Advanced Treads Leg Myomer Leg Hover Unit Gravmag Array Utility Advanced Hacking Suite Device Improved Terrain Scanner Storage Large Storage Unit Processor Advanced Targeting Computer Hackware Advanced Hacking Suite Protection Centrium Medium Armor Plating Weapon Cooled Plasma Cannon Energy Gun Advanced Variable Charge Gun Energy Cannon Cooled Plasma Cannon Ballistic Gun KE Penetrator Ballistic Cannon Gauss Cannon Launcher Advanced EMP Blaster Special Weapon Improved Plasma Cutter Impact Weapon Impact Mace Slashing Weapon Ionic Axe Special Melee Weapon Datajack Build | -11 -10 -10 -10 -9 -8 -8 -8 -8 -8 -8 -8 -7 -7 -7 -7 -7 -6 -6 -6 -6 -6 -6 -6 -5 -5 -5 -5 -5 -5 -5 -5 -4 -4 -4 -4 -4 -3 -3 -2 -1 -1 ------- Run | Yrd Mat Min Exi Min Mat Gar Mat Gar Mat Gar Mat Fac Gar Fac Gar Fac Fac Was Fac Ext Cet Arc Hub Fac Was Fac Gar Fac Upp Upp Zhi Pro Fac Upp Upp War Pro Res Res Acc Com Slots Evolved 18 | . . . . . 4 . . . . . . 2 . . . . 2 . . . . . . 2 . . . . . . . . 2 . . . . 2 2 2 . Power 2 | . . . . . . . . . . . . . . . . . . . . . . . . . . . . . . . . . 1 . . . . . . 1 . Propulsion 5 | . . . . . 1 . . . . . . 1 . . . . 1 . . . . . . . . . . . . . . . 1 . . . . . 1 . . Utility 11 | . . . . . 3 . . . . . . 1 . . . . 1 . . . . . . 2 . . . . . . . . . . . . . 2 1 1 . Weapon . | . . . . . . . . . . . . . . . . . . . . . . . . . . . . . . . . . . . . . . . . . . Parts Attached 791 | 6 13 1 3 . 25 24 11 11 5 8 3 31 15 50 36 37 12 1 46 35 4 6 16 73 3 37 6 58 7 . 4 5 33 2 1 13 2 32 35 62 19 Power 56 | 1 3 . . . 1 . 1 . 1 1 . 4 . 3 1 3 1 . . 2 . . 1 5 . 3 2 4 1 . 2 . 2 . . 1 . 5 1 6 1 Engine 11 | 1 3 . . . 1 . 1 . 1 1 . . . 1 . . . . . 1 . . . . . . 1 . . . . . . . . . . . . . . Core 26 | . . . . . . . . . . . . 4 . 2 1 3 1 . . 1 . . 1 3 . 1 . 3 1 . 1 . 2 . . . . 2 . . . Reactor 19 | . . . . . . . . . . . . . . . . . . . . . . . . 2 . 2 1 1 . . 1 . . . . 1 . 3 1 6 1 Propulsion 142 | 2 3 . 1 . 8 1 3 . 1 1 1 5 3 8 . 1 4 . 1 10 . 3 2 18 1 10 . 13 . . . . 8 . . 2 . 5 5 15 7 Treads 41 | 2 3 . 1 . 8 1 3 . 1 1 1 . . 2 . . . . . 1 . . . 4 . 6 . . . . . . 1 . . . . . . 3 3 Leg 7 | . . . . . . . . . . . . . . . . . . . . 7 . . . . . . . . . . . . . . . . . . . . . Wheel . | . . . . . . . . . . . . . . . . . . . . . . . . . . . . . . . . . . . . . . . . . . Hover 94 | . . . . . . . . . . . . 5 3 6 . 1 4 . 1 2 . 3 2 14 1 4 . 13 . . . . 7 . . 2 . 5 5 12 4 Flight . | . . . . . . . . . . . . . . . . . . . . . . . . . . . . . . . . . . . . . . . . . . Utility 280 | 1 1 1 . . 7 4 2 3 1 1 1 10 3 11 14 13 2 . 31 13 3 . 6 26 2 14 3 22 5 . 1 3 17 . . 5 . 14 14 21 5 Device 131 | . . . . . 3 3 . 2 . . . 3 1 5 6 7 . . 18 8 . . 3 6 2 4 2 11 4 . . 2 8 . . 4 . 5 7 14 3 Storage 19 | 1 1 . . . 1 . . . . . 1 . . . . . . . 3 . . . 1 2 . 2 . 2 . . . . 1 . . . . 2 1 1 . Processor 24 | . . . . . . . 1 . . . . 3 . . 2 . . . 3 . . . . 3 . 1 . 3 . . . 1 2 . . . . 2 2 1 . Hackware 19 | . . . . . 1 . . . 1 . . 1 . 2 . 1 1 . . . . . . 2 . 1 . . . . . . 2 . . . . 2 3 2 . Protection 87 | . . 1 . . 2 1 1 1 . 1 . 3 2 4 6 5 1 . 7 5 3 . 2 13 . 6 1 6 1 . 1 . 4 . . 1 . 3 1 3 2 Artifact . | . . . . . . . . . . . . . . . . . . . . . . . . . . . . . . . . . . . . . . . . . . Weapon 313 | 2 6 . 2 . 9 19 5 8 2 5 1 12 9 28 21 20 5 1 14 10 1 3 7 24 . 10 1 19 1 . 1 2 6 2 1 5 2 8 15 20 6 Energy Gun 46 | . 1 . . . . 1 . . . 1 . 1 1 5 4 9 2 . 3 2 . . 2 1 . 3 . . . . . . . . . 1 . 4 3 1 1 Energy Cannon 135 | . 2 . . . 6 6 . 1 . . . 3 4 7 5 . 2 . 7 2 . 1 2 21 . 6 1 14 1 . 1 2 5 1 . 2 2 3 8 16 4 Ballistic Gun 33 | 2 2 . . . 1 1 1 1 . 1 1 3 3 8 3 3 . . . 2 . . . . . . . . . . . . . . . . . . 1 . . Ballistic Cannon 12 | . 1 . . . . 2 2 3 1 . . . . . . . . . . 1 . . . 1 . . . 1 . . . . . . . . . . . . . Launcher 37 | . . . 1 . 1 5 2 3 1 2 . 1 1 1 5 . . 1 . 2 1 . 1 1 . 1 . . . . . . . 1 . 1 . . 2 2 1 Special Weapon 3 | . . . . . . . . . . . . . . . . . . . . . . . . . . . . . . . . . . . 1 . . . 1 1 . Impact Weapon 36 | . . . . . 1 4 . . . 1 . 4 . 7 4 7 1 . 4 . . . . . . . . . . . . . 1 . . 1 . 1 . . . Slashing Weapon 8 | . . . . . . . . . . . . . . . . . . . . 1 . 1 2 . . . . 4 . . . . . . . . . . . . . Piercing Weapon . | . . . . . . . . . . . . . . . . . . . . . . . . . . . . . . . . . . . . . . . . . . Special Melee Weapon 3 | . . . 1 . . . . . . . . . . . . 1 . . . . . 1 . . . . . . . . . . . . . . . . . . . Unidentified Prototypes 37 | . . . . . 3 . 1 . . . . 3 . 1 . . 2 . 2 . 1 . 4 1 . 2 1 1 . . 2 . 3 . . 3 . 3 2 2 . Corrupted Parts 2 | . . . . . . . . . . . . . . . . . . . . . . . 2 . . . . . . . . . . . . . . . . . . System Corruption 16 | . . . . . . . . . . . . . . . . . . . . . . . 16 . . . . . . . . . . . . . . . . . . Parts Lost 75 | . . . . . 1 2 4 1 1 1 . 1 . 7 1 2 . . 1 6 1 . 2 10 . . . 7 . . . 2 1 . . . . 1 3 8 12 Power 9 | . . . . . . . 1 . 1 . . . . 2 . 1 . . . 1 . . 1 . . . . 1 . . . . . . . . . . . 1 . Propulsion 17 | . . . . . . . 1 . . . . . . 1 . . . . . 1 . . 1 1 . . . 3 . . . 2 . . . . . . . 3 4 Utility 38 | . . . . . . 2 1 1 . 1 . 1 . 2 1 1 . . . 4 1 . . 7 . . . 3 . . . . 1 . . . . 1 2 4 5 Weapon 11 | . . . . . 1 . 1 . . . . . . 2 . . . . 1 . . . . 2 . . . . . . . . . . . . . . 1 . 3 Highest Loss Streak 7 | . . . . . 1 1 4 1 1 1 . 1 . 4 1 1 . . 1 2 1 . 2 3 . . . 1 . . . 1 1 . . . . 1 1 3 7 To Critical Strikes 1 | . . . . . . . . . . . . . . . . . . . . . . . . 1 . . . . . . . . . . . . . . . . . Average Slot Usage (%) 83 | . 96 100 100 100 85 90 86 88 88 89 90 82 78 78 76 76 78 80 84 91 92 78 85 79 73 83 81 82 88 88 83 67 79 87 84 91 91 81 85 77 53 Engine 2 | . 13 14 14 14 9 9 9 9 7 9 9 2 . . . . . . . 2 6 6 4 . . . . . . . . . . . . . . . . . . Core 3 | . . . . . . . . . . . . 4 7 6 7 6 6 6 6 3 . . 1 4 5 3 . 3 5 5 5 5 4 5 5 5 5 4 1 . . Reactor 1 | . . . . . . . . . . . . . . . . . . . . . . . . . . 1 5 1 . . . . . . . 3 5 4 6 7 4 Treads 6 | . 27 28 28 28 26 22 16 18 18 18 18 4 . . . . . . . . . . . 3 . 1 17 . . . . . . . . . . . . . 2 Hover 12 | . . . . . . . . . . . . 14 15 17 15 15 15 20 20 9 . 16 20 12 17 15 . 20 23 23 23 13 22 26 26 25 26 20 21 17 14 Device 7 | . . . . . 8 14 9 4 . . . 5 7 6 7 6 6 6 5 10 6 6 12 6 3 4 11 9 11 11 11 6 4 10 10 10 10 13 9 14 9 Storage 6 | . 25 15 14 14 9 9 9 9 9 9 9 7 7 7 7 7 6 6 6 6 6 6 6 5 5 5 5 5 5 5 5 5 4 5 5 5 5 4 5 4 3 Processor 7 | . . . . . . . 8 9 9 9 9 7 7 7 13 7 6 6 12 3 . . . 7 11 10 5 10 11 11 11 11 11 10 10 10 10 9 9 9 7 Hackware 15 | . . . . . 9 9 9 9 17 18 18 15 15 15 8 14 20 20 20 20 20 20 20 17 17 21 17 17 17 17 17 17 16 15 15 15 15 13 16 16 6 Protection 5 | . . 12 14 14 8 8 7 11 9 8 9 6 5 6 5 6 6 6 . 3 11 7 5 8 5 5 4 5 5 5 5 1 3 5 5 5 5 4 4 3 1 Energy Gun 1 | . 7 . . . . 2 . . . 6 9 2 . . 1 2 . . . 3 . . . . . . . . . . . . . . . . . . 3 1 2 Energy Cannon 5 | . 8 28 15 14 14 7 9 3 . . . . 3 . . . 2 . 9 4 . 4 6 7 5 7 10 4 5 5 1 2 4 4 5 3 7 3 3 3 1 Ballistic Gun 1 | . 9 . . . . . . 4 9 5 6 1 4 1 1 . . . . 2 . . . . . . . . . . . . . . . . . . . . . Impact Weapon 1 | . . . . . . 1 . . . . . 4 2 5 4 5 5 . 1 . . . . . . . . . . . . . 3 3 . . . . . . . Peak Build Rating 188 | 6 11 11 13 13 34 47 46 46 49 52 51 63 64 68 70 67 78 79 83 83 92 92 88 127 94 120 131 112 102 96 96 103 122 122 121 139 135 162 182 188 180 Average Rating 81 | 4 8 10 11 13 28 40 43 45 48 49 50 55 59 58 59 60 69 78 79 79 89 79 83 100 83 98 120 93 97 95 90 74 104 120 115 128 130 144 177 178 139 On Entrance 76 | . 6 11 11 13 13 31 44 46 46 49 50 51 55 58 61 62 60 78 79 74 83 92 75 86 85 86 120 121 95 96 96 96 68 122 115 121 134 135 157 178 170 Naked Turns . | . . . . . . . . . . . . . . . . . . . . . . . . . . . . . . . . . . . . . . . . . . Heaviest Build 147 | 12 28 28 24 24 54 58 64 64 64 62 61 62 49 48 47 48 47 42 61 51 55 55 51 147 43 102 102 69 51 47 47 59 49 48 46 67 64 80 92 111 138 Greatest Support 190 | 40 43 43 46 46 69 92 92 92 92 92 92 92 40 70 40 40 49 49 49 105 105 105 52 187 49 190 190 51 51 51 51 51 63 63 53 66 66 78 93 92 155 Greatest Overweight (x) 15 | . . . . . . . . . . . . 6 1 1 1 1 1 . 1 1 . . 1 2 . 4 . 1 1 15 . 1 1 . . 1 . 1 1 1 . Average Overweight (x) . | . . . . . . . . . . . . . . . . . . . . . . . . . . . . . . . . . . . . . . . . . . Largest Inventory Capacity 25 | 8 10 10 10 10 15 15 15 15 15 15 15 15 15 15 15 15 15 15 15 15 15 15 15 25 15 20 20 20 15 15 15 15 15 15 15 15 15 20 20 20 20 Average Capacity 15 | 6 9 10 10 10 12 15 15 15 15 15 15 15 15 15 15 15 15 15 15 15 15 15 15 19 15 16 20 15 15 15 15 15 14 15 15 15 15 17 20 20 18 Most Carried 25 | 2 10 10 10 10 15 15 15 15 15 15 15 15 15 15 15 15 15 15 15 15 15 15 15 25 15 20 20 20 15 15 15 15 15 15 15 15 15 20 20 20 20 Average Carried 14 | 1 7 10 9 10 12 14 14 15 14 14 15 14 14 13 13 14 14 14 14 13 14 14 14 17 14 16 20 14 14 14 15 14 14 14 15 14 13 17 19 19 15 Final Capacity 20 | 8 10 10 10 10 15 15 15 15 15 15 15 15 15 15 15 15 15 15 15 15 15 15 15 15 15 20 20 15 15 15 15 15 15 15 15 15 15 20 20 20 20 Final Carried 20 | 2 10 10 10 10 15 15 15 15 15 15 15 15 15 15 15 15 15 15 14 15 15 15 13 15 15 20 20 14 15 15 15 15 15 15 15 14 15 20 20 18 9 Class Distribution -------------------- 40% | Hacker-Mutant 27% | Hacker-Scout 17% | Mutant 3% | Machinist-Mutant 3% | Commander-Mutant Dominant Class ---------------- Mutant | -10/Materials Mutant | -10/Mines Mutant | -10/Exiles Mutant | -9/Mines Mutant | -8/Materials Mutant | -8/Garrison Mutant | -8/Materials Mutant | -8/Garrison Hacker-Mutant | -8/Materials Hacker-Mutant | -8/Garrison Hacker-Mutant | -8/Materials Hacker-Scout | -7/Factory Hacker-Mutant | -7/Garrison Hacker-Scout | -7/Factory Machinist-Mutant | -7/Garrison Machinist-Mutant | -7/Factory Hacker-Mutant | -6/Factory Hacker-Mutant | -6/Waste Hacker-Scout | -6/Factory Hacker-Mutant | -6/Extension Commander-Mutant | -6/Cetus Commander-Mutant | -6/Archives Hacker-Scout | -6/Hub_04(d) Hacker-Mutant | -5/Factory Hacker-Mutant | -5/Waste Hacker-Scout | -5/Factory Hacker-Mutant | -5/Garrison Hacker-Mutant | -5/Factory Hacker-Mutant | -5/Upper Caves Hacker-Mutant | -5/Upper Caves Hacker-Mutant | -5/Zhirov Hacker-Mutant | -4/Proximity Caves Hacker-Mutant | -4/Factory Hacker-Scout | -4/Upper Caves Hacker-Scout | -4/Upper Caves Hacker-Scout | -4/Warlord Hacker-Scout | -3/Proximity Caves Hacker-Scout | -3/Research Hacker-Mutant | -2/Research Hacker-Mutant | -1/Access Mutant | -1/Command Resources | -11 -10 -10 -10 -9 -8 -8 -8 -8 -8 -8 -8 -7 -7 -7 -7 -7 -6 -6 -6 -6 -6 -6 -6 -5 -5 -5 -5 -5 -5 -5 -5 -4 -4 -4 -4 -4 -3 -3 -2 -1 -1 ----------- Run | Yrd Mat Min Exi Min Mat Gar Mat Gar Mat Gar Mat Fac Gar Fac Gar Fac Fac Was Fac Ext Cet Arc Hub Fac Was Fac Gar Fac Upp Upp Zhi Pro Fac Upp Upp War Pro Res Res Acc Com Matter Collected 12769 | 213 219 10 . 30 255 523 199 682 603 371 80 585 310 862 731 357 218 36 565 729 145 50 150 1000 . 416 80 636 70 7 . 95 289 60 65 395 31 315 441 616 330 Remotely . | . . . . . . . . . . . . . . . . . . . . . . . . . . . . . . . . . . . . . . . . . . Salvage Created 32453 | . 669 219 . . 1687 1445 739 966 982 1007 233 870 1232 1581 764 605 344 458 1053 1261 442 73 265 3304 . 1717 888 1704 96 . . 258 714 192 . 514 180 1172 857 3191 771 Parts 1528 | . 40 15 . . 88 49 40 83 62 45 20 46 51 93 40 24 13 4 53 47 21 10 13 142 . 81 31 93 7 . . 4 34 8 . 22 6 41 23 146 33 Haulers Intercepted 18 | . 2 . . . 4 . 1 . 2 . . . . . . . . . 1 . . . . 1 . 1 . . . . . . . . . . . 1 4 1 . Recyclers Shooed 18 | . 2 . . . . . . . 1 . . 1 . 4 . . 1 . 1 3 . . . . . 3 . 1 . . . . 1 . . . . . . . . Parts Field Recycled . | . . . . . . . . . . . . . . . . . . . . . . . . . . . . . . . . . . . . . . . . . . Retrieved Matter . | . . . . . . . . . . . . . . . . . . . . . . . . . . . . . . . . . . . . . . . . . . Parts Self-Destructed 21 | . . . . . . . . . . . . . . . . . . . . . . . . . . . . . 6 . . 4 . 5 . . 6 . . . . Prevented 5 | . . . . . . . . . . . . . . . . . . . . . . . . . . . . . . . . . . 3 . . 2 . . . . Kills | -11 -10 -10 -10 -9 -8 -8 -8 -8 -8 -8 -8 -7 -7 -7 -7 -7 -6 -6 -6 -6 -6 -6 -6 -5 -5 -5 -5 -5 -5 -5 -5 -4 -4 -4 -4 -4 -3 -3 -2 -1 -1 ------- Run | Yrd Mat Min Exi Min Mat Gar Mat Gar Mat Gar Mat Fac Gar Fac Gar Fac Fac Was Fac Ext Cet Arc Hub Fac Was Fac Gar Fac Upp Upp Zhi Pro Fac Upp Upp War Pro Res Res Acc Com Combat Hostiles Destroyed 539 | . 20 6 . . 26 29 16 38 20 25 4 12 23 26 31 9 3 2 13 11 5 . 5 58 . 24 14 23 1 . . 4 6 7 . 9 1 13 6 40 9 Melee 23 | . . . . . . 1 . . 1 . . . . 7 1 1 1 . . . . . 2 . . . . 9 . . . . . . . . . . . . . Guns 92 | . 16 . . . . 1 . 7 7 11 4 7 5 11 6 6 2 . 2 4 . . . 1 . 1 . . . . . . . . . . . . 1 . . Cannons 237 | . 3 4 . . 20 3 8 20 11 . . 3 13 5 4 . . . 9 6 . . 3 40 . 19 13 11 1 . . 2 6 2 . . 1 4 1 19 6 AOE 110 | . 1 2 . . 1 18 7 11 1 10 . 2 5 . 19 . . 2 . . . . . 7 . . . . . . . . . 5 . 5 . . 2 12 . Classes Destroyed 23 | . 6 3 . . 4 1 1 . 1 1 . 1 . . . . . 1 . . . . . 1 . . 1 . 1 . . 1 . . . . . . . . . Worker 16 | . 1 . . . 2 . 1 . . . . 3 . 1 . 2 1 . 1 . . . . 1 . . . . . . . . 2 . . . . . . 1 . Builder 16 | . . . . . 2 . . . 1 . . . . 6 . 3 . . 1 2 . . . 1 . . . . . . . . . . . . . . . . . Tunneler 2 | . . 1 . . . . . . 1 . . . . . . . . . . . . . . . . . . . . . . . . . . . . . . . . Hauler 18 | . 2 . . . 4 . 1 . 2 . . . . . . . . . 1 . . . . 1 . 1 . . . . . . . . . . . 1 4 1 . Recycler 17 | . . . . . . . . . 1 . . 1 . 2 . . 1 . . 3 . . . 1 . 1 . 2 . . . . 1 . . . . . . 4 . Minesweeper 3 | . . . . . . . . . . . . . . . . . . . . . . . . . . . . . 1 . . . . . . . 2 . . . . Mechanic 3 | . . . . . 1 . . . . . 1 . . . . . . . . . . . . . . . . . . . . . . . . . . . . 1 . Operator 7 | . 1 . . . 2 . . . . . . . . 1 . 1 1 . . . . . 1 . . . . . . . . . . . . . . . . . . Drone 1 | . . . . . . . . . . . . . . . . . . . . . . . . . . . . . . . . 1 . . . . . . . . . Watcher 70 | . 3 . . . 3 1 2 . 3 . . 4 . 7 . 4 1 . 6 3 2 . 2 7 . 6 . 6 . . . . 6 . . . . 1 . 3 . Swarmer 135 | . 12 2 . . 4 3 3 20 5 8 . . 3 8 15 . . . . . . . 3 14 . 5 . 2 . . . . . 7 . . . . 2 19 . Saboteur 6 | . . . . . . . . . . . . . . . . . . . . . . . . 2 . . . 1 . . . . . . . 3 . . . . . Grunt 176 | . 8 1 . . 13 19 9 3 8 13 2 6 10 4 12 4 1 . 2 5 . . . 18 . 8 7 4 . . . 2 . . . 3 . 8 1 2 3 Brawler 6 | . . . . . . 1 . . . . . . 2 . . . . . . . . . . 2 . . . . . . . . . . . . 1 . . . . Duelist 12 | . . . . . 1 1 . . . . . . 1 3 1 . . . . . . . . 1 . . . 2 . . . . . . . 1 . . . . 1 Protector 5 | . . . . . . . 2 . . 1 . . . . . . . . . . . . . . . . . . . . . . . . . 1 . . . . 1 Sentry 86 | . . 2 . . 7 4 1 14 7 2 2 2 3 4 3 2 1 . 6 6 . . 1 4 . 1 2 3 . . . 1 . . . . . 2 1 5 . Demolisher 1 | . . . . . . . . . . 1 . . . . . . . . . . . . . . . . . . . . . . . . . . . . . . . Hunter 27 | . . . . . 1 1 1 1 . . . 1 4 1 . . . . 1 . . . . 2 . 1 2 3 . . . . . . . 1 . 3 . 2 2 Programmer 73 | . . . . . . . . . . . . 3 . 6 . 3 1 . 4 . . . 1 15 . 9 2 8 1 . . . 6 . . . . . . 12 2 Behemoth 3 | . . . . . . . . . . . . . . . . . . . . . . . . . . . 1 . . . . . . . . . . . 2 . . Compactor 2 | . . . . . . . . . . . . . . . . . . 2 . . . . . . . . . . . . . . . . . . . . . . . Cetus Guard 5 | . . . . . . . . . . . . . . . . . . . . . 5 . . . . . . . . . . . . . . . . . . . . Assembled 1 | . . 1 . . . . . . . . . . . . . . . . . . . . . . . . . . . . . . . . . . . . . . . Best Kill Streak 10 | . 4 2 . . 4 9 7 5 10 7 3 4 9 4 5 2 3 1 3 3 4 . 4 9 . 5 3 4 1 . . 3 5 4 . 6 2 5 2 9 6 Combat Bots Only 9 | . 4 2 . . 3 8 7 5 7 7 3 3 9 4 5 2 1 1 2 2 3 . 4 9 . 5 3 4 1 . . 3 2 4 . 6 1 4 2 9 6 Max Kills in Single Turn 5 | . 1 2 . . 2 3 2 3 2 4 2 1 3 1 4 1 1 1 1 1 1 . 1 4 . 2 1 1 1 . . 1 2 2 . 3 1 2 2 5 1 Gunslinging 1 | . . . . . . . . . . 1 . . . . . . . . . . . . . . . . . . . . . . . . . . . . . . . Exploded 5 | . 1 1 . . 1 3 2 3 1 4 . 1 3 . 4 . . 1 . . . . . 3 . . . . . . . . . 2 . 3 . . 2 5 . Melee 1 | . . . . . . 1 . . 1 . . . . 1 1 1 1 . . . . . 1 . . . . 1 . . . . . . . . . . . . . Uniques/NPCs Destroyed . | . . . . . . . . . . . . . . . . . . . . . . . . . . . . . . . . . . . . . . . . . . Combat | -11 -10 -10 -10 -9 -8 -8 -8 -8 -8 -8 -8 -7 -7 -7 -7 -7 -6 -6 -6 -6 -6 -6 -6 -5 -5 -5 -5 -5 -5 -5 -5 -4 -4 -4 -4 -4 -3 -3 -2 -1 -1 -------- Run | Yrd Mat Min Exi Min Mat Gar Mat Gar Mat Gar Mat Fac Gar Fac Gar Fac Fac Was Fac Ext Cet Arc Hub Fac Was Fac Gar Fac Upp Upp Zhi Pro Fac Upp Upp War Pro Res Res Acc Com Hostile Shots Fired 2887 | . 69 7 . . 88 78 59 69 58 78 6 64 66 209 83 100 33 . 211 225 16 . 83 327 . 107 51 172 2 4 . 47 16 6 . 22 1 64 32 250 184 Missed 1045 | . 19 4 . . 32 27 16 33 17 22 4 23 22 70 30 42 15 . 106 97 4 . 26 83 . 24 13 59 1 3 . 17 6 2 . 9 1 36 10 91 81 Damage Taken 29927 | . 442 108 . . 818 957 576 375 474 898 31 591 395 1860 565 875 303 21 962 1499 249 . 721 5243 . 1430 684 1936 17 16 . 562 270 65 . 307 . 579 829 2675 2594 Core 4116 | . 86 . . . 16 70 84 15 70 68 . 107 58 268 82 109 . 21 157 189 13 . 112 254 . 133 72 206 . . . 130 20 . . 22 . 68 71 265 1350 Absorbed by Shields 993 | . . . . . . . . . . . . . . . . . . . . . 87 . . 84 . . 247 430 6 6 . 108 . . . . . . . . 25 Reduced by Siege Mode 395 | . . . . . . . . . . . . . . . . . . . . . . . . 253 . 40 4 . . . . . . . . . . . . 22 76 Redirected to Shielding 19 | . . 5 . . 14 . . . . . . . . . . . . . . . . . . . . . . . . . . . . . . . . . . . . Ignored by Resistances 261 | . . . . . . . . 106 77 78 . . . . . . . . . . . . . . . . . . . . . . . . . . . . . . . Regen/Repaired (Parts) 8677 | . 108 . . . 411 . 329 . . . . 303 . 606 . 441 203 . 296 . . . . 1564 . 1482 . 1078 . . . . 779 . . 46 . 258 . 773 . Core Remaining (%) 62 | 100 . . . 65 . . . . . . 41 . . . . 10 . . . . . . 42 . . . . . . . . 20 . . . . 96 94 95 . . Volleys Fired 2373 | . 63 9 . . 89 98 36 72 56 77 10 68 97 93 64 43 4 10 94 97 11 . 25 203 . 167 76 146 8 21 . 22 78 19 7 23 51 131 84 183 38 Largest 2 | . 2 2 . . 2 2 2 2 2 2 2 2 1 2 2 2 2 1 2 2 1 . 2 2 . 2 2 2 2 1 . 2 1 1 1 1 2 2 2 2 1 Hottest 360 | . 112 112 . . 112 136 128 128 81 114 114 225 120 258 225 163 123 46 140 162 50 . 125 176 . 148 148 148 148 35 . 148 113 50 35 50 148 148 240 360 240 Shots Fired 3067 | . 125 18 . . 147 104 52 103 106 96 17 71 97 106 63 59 8 10 141 157 11 . 30 330 . 226 127 158 9 21 . 36 78 19 7 23 75 132 85 184 36 Gun 723 | . 95 . . . . 23 . 19 50 72 17 59 49 77 35 59 4 . 10 69 . . . 8 . 9 . . . . . . . . . . . 18 27 19 4 Cannon 2154 | . 30 18 . . 147 40 41 77 56 . . 8 44 26 10 . 4 1 131 80 . . 29 317 . 217 127 158 9 21 . 36 78 12 7 . 75 114 55 161 25 Launcher 189 | . . . . . . 41 11 7 . 24 . 4 4 3 18 . . 9 . 8 11 . 1 5 . . . . . . . . . 7 . 23 . . 2 4 7 Special 1 | . . . . . . . . . . . . . . . . . . . . . . . . . . . . . . . . . . . . . . . 1 . . Kinetic 591 | . 49 . . . . 15 24 77 106 44 10 48 42 59 22 17 . . . 60 . . . 18 . . . . . . . . . . . . . . . . . Thermal 1882 | . 46 . . . . 34 17 19 . 28 7 19 51 44 23 42 8 1 141 89 . . 29 287 . 214 127 137 9 21 . 36 78 12 7 . 75 94 58 117 12 Explosive 36 | . . . . . . . . 7 . . . . . . 18 . . 9 . . . . . . . . . . . . . . . . . . . . 2 . . Electromagnetic 557 | . 30 18 . . 147 55 11 . . 24 . 4 4 3 . . . . . 8 11 . 1 25 . 12 . 21 . . . . . 7 . 23 . 38 24 67 24 Robot Hit Streak 37 | . 11 7 . . 15 9 7 10 14 9 5 7 27 13 16 20 23 24 27 37 7 . 6 17 . 15 34 12 9 10 . 10 12 1 . 8 10 8 16 15 28 Robot Miss Streak 6 | . 5 1 . . 4 4 2 2 3 2 2 6 1 2 1 2 . . 5 4 . . 1 4 . 3 2 6 . 2 . 3 4 1 . . 4 2 3 4 1 Penetration Max 1 | . . . . . . . 1 . 1 1 . 1 . 1 . . . . . 1 . . . . . . . . . . . . . . . . . . . . . Secondary Targets 6 | . 5 . . . . . . . . 1 . . . . . . . . . . . . . . . . . . . . . . . . . . . . . . . Max Gunslinging Chain 1 | . 1 . . . . . . . . 1 . . . . . . . . . . . . . . . . . . . . . . . . . . . . . . . Capacitor 407 | . . . . . . . . . . . . . . . . . . . . . . . . . . . . . . . . . 27 . . . . 119 68 168 25 Shots Hit Robots 1691 | . 77 10 5 . 110 40 28 54 62 53 12 39 38 84 28 61 12 1 76 99 5 5 20 201 . 96 55 98 7 2 . 25 32 2 . 7 23 59 50 88 27 Core Hits 971 | . 37 8 . . 53 47 31 44 37 34 7 27 36 42 40 15 7 8 26 37 19 2 8 97 . 36 23 38 1 . . 6 16 11 . 32 6 19 24 72 25 Critical Kills 21 | . . . . . . . . . . . 1 . 1 2 . 3 1 . 2 2 . . 1 1 . 3 1 . . . . 2 . . . . . . 1 . . Critical Parts Destroyed 19 | . . . . . . 1 . . . . . . . 7 . 7 1 . . 3 . . . . . . . . . . . . . . . . . . . . . Critical Strikes 68 | . 3 . . . 4 2 1 2 4 . 3 . 1 9 . 10 2 . 2 6 . . 2 3 . 3 1 3 . . . 2 . . . . . 2 3 . . Burn 5 | . 2 . . . . 1 . . . . 2 . . . . . . . . . . . . . . . . . . . . . . . . . . . . . . Meltdown 10 | . . . . . . . . . . . . . . . . . . . 1 . . . 1 1 . 3 1 . . . . 2 . . . . . . 1 . . Destroy 15 | . . . . . . . . . . . 1 . 1 1 . 6 . . . 6 . . . . . . . . . . . . . . . . . . . . . Blast 9 | . . . . . . . 1 2 4 . . . . . . . . . . . . . . 2 . . . . . . . . . . . . . . . . . Corrupt 9 | . 1 . . . 4 . . . . . . . . . . . . . . . . . . . . . . . . . . . . . . . . 2 2 . . Smash 16 | . . . . . . 1 . . . . . . . 8 . 4 2 . 1 . . . . . . . . . . . . . . . . . . . . . . Sever 4 | . . . . . . . . . . . . . . . . . . . . . . . 1 . . . . 3 . . . . . . . . . . . . . Melee Attacks 359 | . . . 5 . 2 10 . . . 1 . 21 10 79 33 52 28 . 20 3 . 5 20 . . . . 38 . . . . 21 5 . 5 . 1 . . . Impact 287 | . . . . . 2 10 . . . 1 . 21 10 79 33 51 28 . 20 . . . . . . . . . . . . . 21 5 . 5 . 1 . . . Slashing 63 | . . . . . . . . . . . . . . . . . . . . 3 . 2 20 . . . . 38 . . . . . . . . . . . . . Piercing . | . . . . . . . . . . . . . . . . . . . . . . . . . . . . . . . . . . . . . . . . . . Sneak Attacks 28 | . . . 5 . . . . . . . . 2 . 5 . 6 2 . 2 . . 3 . . . . . 3 . . . . . . . . . . . . . Combat Hostiles 2 | . . . . . . . . . . . . . . . . . . . . . . . . . . . . 2 . . . . . . . . . . . . . Follow-up Attacks . | . . . . . . . . . . . . . . . . . . . . . . . . . . . . . . . . . . . . . . . . . . Damage Inflicted 81870 | . 1227 381 . 5 3209 2938 1952 2685 2027 2332 330 1720 2537 4464 3851 2475 650 3798 2770 3108 849 180 914 8805 . 3964 2413 4102 289 64 . 957 1314 464 . 2005 821 2277 3290 5341 1362 Guns 10766 | . 710 . . . . 201 . 312 923 1150 330 830 693 1672 583 1346 117 . 166 1231 . . . 141 . 191 . . . . . . . . . . . 103 67 . . Cannons 43573 | . 445 204 . . 2731 526 718 1249 926 . . 311 1484 916 332 . 93 . 2260 1650 . . 519 7282 . 3722 2413 2662 289 64 . 957 1132 73 . . 821 2174 2235 4335 1050 Explosions 20847 | . 42 167 . . 465 2062 1234 1124 102 1123 . 327 360 219 2602 . . 3798 . 193 849 . 56 1377 . 51 . . . . . . . 391 . 2005 . . 988 1006 306 Melee 6531 | . . . . . . 149 . . . 59 . 244 . 1657 334 1129 440 . 344 34 . 180 339 . . . . 1440 . . . . 182 . . . . . . . . Ramming 153 | . 30 10 . 5 13 . . . 76 . . 8 . . . . . . . . . . . 5 . . . . . . . . . . . . . . . . 6 Kinetic 9774 | . 257 . . . . 308 383 1209 1849 746 200 728 547 1416 424 259 . . . 1045 . . . 403 . . . . . . . . . . . . . . . . . Thermal 37732 | . 495 167 . . 465 345 607 352 . 604 130 441 1684 1172 491 1087 210 . 2426 1836 . . 519 7251 . 3563 2413 2131 289 64 . 957 1132 73 . 579 821 1029 1512 2438 449 Explosive 8658 | . . . . . . . . 1124 . . . . . . 2602 . . 3798 . . . . . 146 . . . . . . . . . . . . . . 988 . . Electromagnetic 19022 | . 445 204 . . 2731 2136 962 . 102 923 . 299 306 219 . . . . . 193 849 . 56 1000 . 401 . 531 . . . . . 391 . 1426 . 1248 790 2903 907 Impact 4538 | . . . . . . 149 . . . 59 . 244 . 1657 334 1129 440 . 344 . . . . . . . . . . . . . 182 . . . . . . . . Slashing 1993 | . . . . . . . . . . . . . . . . . . . . 34 . 180 339 . . . . 1440 . . . . . . . . . . . . . Piercing . | . . . . . . . . . . . . . . . . . . . . . . . . . . . . . . . . . . . . . . . . . . Highest Corruption 17 | . . . . . 1 2 1 . . 2 2 4 . 3 . 4 . 10 10 5 . . 17 10 8 6 2 4 1 1 1 1 2 . . 1 1 . . 8 13 Average Corruption 2 | . . . . . 1 1 1 . . 1 2 3 . 1 . 2 . 10 3 3 . . 1 3 5 1 1 2 1 1 1 1 1 . . 1 1 . . 4 9 Corruption Purged 68 | . . . . . 1 2 1 . . . . 4 . 3 . 1 . . 21 5 . . . 11 4 6 . 7 . . . . 2 . . . . . . . . Corruption Blocked . | . . . . . . . . . . . . . . . . . . . . . . . . . . . . . . . . . . . . . . . . . . Effects 317 | . . . . . 6 1 . . . 6 4 23 . 24 . 20 . 4 21 2 . . . 61 2 21 10 31 . 5 . 2 10 . . 3 5 . . 35 21 Message Errors 68 | . . . . . 1 . . . . 2 1 7 . 5 . 1 . 1 2 1 . . . 14 1 4 4 4 . 1 . . 2 . . 1 2 . . 8 6 Matter Fused 77 | . . . . . 1 1 . . . 1 1 8 . 5 . 3 . 2 8 . . . . 15 . 4 1 10 . 1 . . 2 . . 1 2 . . 9 2 Heat Flow Errors 42 | . . . . . 1 . . . . . . 1 . 4 . 4 . 1 3 . . . . 12 . 2 1 5 . . . . 2 . . . . . . 2 4 Energy Discharges 49 | . . . . . 2 . . . . 1 2 2 . 3 . 5 . . 5 . . . . 7 1 . 2 5 . 1 . 2 1 . . 1 1 . . 6 2 Parts Rejected 2 | . . . . . . . . . . . . . . . . . . . . . . . . . . . . . . . . . . . . . . . . 2 . Parts Fused 3 | . . . . . . . . . . . . . . 1 . . . . . . . . . . . . . . . 1 . . 1 . . . . . . . . Data Loss (minor) 45 | . . . . . 1 . . . . 1 . 2 . 5 . 6 . . 2 1 . . . 9 . 5 1 4 . . . . . . . . . . . 5 3 Data Loss (major) 13 | . . . . . . . . . . . . 1 . . . 1 . . 1 . . . . 1 . 1 1 2 . 1 . . 2 . . . . . . 1 1 Misfires 6 | . . . . . . . . . . . . . . 1 . . . . . . . . . 2 . 2 . 1 . . . . . . . . . . . . . Alerts 5 | . . . . . . . . . . 1 . . . . . . . . . . . . . . . 3 . . . . . . . . . . . . . 1 . Misdirections 1 | . . . . . . . . . . . . . . . . . . . . . . . . . . . . . . . . . . . . . . . . . 1 Weapon Failures 6 | . . . . . . . . . . . . 2 . . . . . . . . . . . 1 . . . . . . . . . . . . . . . 1 2 Overload Shots 40 | . . . . . . . . . . . . 2 . 1 2 . . . 2 1 . . . 1 . . . . . . . . 2 . . . 4 3 2 17 3 Effects 2 | . . . . . . . . . . . . . . . . . . . . . . . . . . . . . . . . . . . . . . . . 2 . Energy Bleed 1 | . . . . . . . . . . . . . . . . . . . . . . . . . . . . . . . . . . . . . . . . 1 . Short Circuit 1 | . . . . . . . . . . . . . . . . . . . . . . . . . . . . . . . . . . . . . . . . 1 . Overflow Damage 4554 | . 79 12 . . 29 126 63 34 . 50 . 94 45 820 404 642 131 112 241 32 . . 2 346 . 199 92 275 98 . . 25 71 21 . 5 94 65 78 220 49 Projectiles 1787 | . 79 . . . 19 16 46 29 . . . . 45 . 27 . 1 . 142 32 . . 2 293 . 199 92 148 98 . . 25 38 . . . 94 65 48 216 33 Explosions 504 | . . 12 . . 10 1 17 5 . 4 . . . . 214 . . 112 . . . . . 53 . . . . . . . . . 21 . 5 . . 30 4 16 Melee 2263 | . . . . . . 109 . . . 46 . 94 . 820 163 642 130 . 99 . . . . . . . . 127 . . . . 33 . . . . . . . . Knockbacks 36 | . 1 . . . . . 2 5 2 1 . 1 . 7 3 6 3 . 1 . . . . 2 . . . . . . . . 2 . . . . . . . . Impact 24 | . 1 . . . . . . . . 1 . 1 . 7 2 6 3 . 1 . . . . . . . . . . . . . 2 . . . . . . . . Kinetic 9 | . . . . . . . 2 3 2 . . . . . . . . . . . . . . 2 . . . . . . . . . . . . . . . . . Secondary 3 | . . . . . . . . 2 . . . . . . 1 . . . . . . . . . . . . . . . . . . . . . . . . . . Self-Inflicted Damage 825 | . . 67 . . . 189 32 39 . 89 . . . 50 . . . 21 . . . . . 131 . 20 . . . . . . . . . . . . . 51 136 Shots 47 | . . 2 . . . 11 5 2 . 6 . . . 3 . . . 1 . . . . . 6 . 1 . . . . . . . . . . . . . 4 6 Rammed 18 | . 3 3 . 1 2 . . . 6 . . 1 . . . . . . . . . . . 1 . . . . . . . . . . . . . . . . 1 Targets Rammed 20 | . 4 3 . 1 2 . . . 7 . . 1 . . . . . . . . . . . 1 . . . . . . . . . . . . . . . . 1 Kicked . | . . . . . . . . . . . . . . . . . . . . . . . . . . . . . . . . . . . . . . . . . . Crushed 2 | . 1 . . . . . . . 1 . . . . . . . . . . . . . . . . . . . . . . . . . . . . . . . . Highest Temperature 566 | . 204 162 . . 242 132 180 159 375 373 275 360 388 566 366 408 42 155 206 144 . . 26 422 . 356 360 387 264 . . 99 240 44 . 304 372 339 493 497 396 Average Temperature 86 | . 66 60 . . 37 45 64 43 83 123 96 117 96 164 92 137 17 86 36 44 . . 14 63 . 92 150 109 101 . . 38 28 15 . 93 117 81 113 106 131 Received Heat Transfer 6198 | . 84 36 . . 387 324 234 99 243 279 18 249 105 390 246 237 72 . 240 408 13 . 144 649 . 423 127 334 . . . 105 . . . 9 . 111 515 45 72 Effects 37 | . . . . . . . . . 3 4 . . 1 11 . 4 . . . . . . . . . 1 . 3 . . . . . . . 1 2 . 5 1 1 Shutdowns 6 | . . . . . . . . . . 1 . . 1 1 . . . . . . . . . . . . . 1 . . . . . . . . 1 . . 1 . Energy Bleed 12 | . . . . . . . . . 1 1 . . . 1 . 3 . . . . . . . . . 1 . 2 . . . . . . . 1 1 . . . 1 Interference 8 | . . . . . . . . . 1 2 . . . 5 . . . . . . . . . . . . . . . . . . . . . . . . . . . Matter Decay 4 | . . . . . . . . . . . . . . 2 . 1 . . . . . . . . . . . . . . . . . . . . . . 1 . . Short Circuit 1 | . . . . . . . . . . . . . . . . . . . . . . . . . . . . . . . . . . . . . . . 1 . . Damage (minor) 3 | . . . . . . . . . 1 . . . . 2 . . . . . . . . . . . . . . . . . . . . . . . . . . . Damage (major) 3 | . . . . . . . . . . . . . . . . . . . . . . . . . . . . . . . . . . . . . . . 3 . . Siege Activations 22 | . . . . . . . . . . . . . . . . . . . . . . . . 9 . 3 5 . . . . . . . . . . . . 3 2 Total Turns 434 | . . . . . . . . . . . . . . . . . . . . . . . . 210 . 70 89 . . . . . . . . . . . . 38 27 Longest Duration 60 | . . . . . . . . . . . . . . . . . . . . . . . . 60 . 28 32 . . . . . . . . . . . . 24 20 Robots Corrupted 85 | . 1 . . . 6 6 1 . . 4 . 2 . 9 3 5 2 . 2 . 5 . . 5 . . . 3 . . . . 2 . . 4 . 8 3 11 3 Combat Hostiles 59 | . . . . . 5 6 1 . . 4 . . . 3 1 1 . . . . 5 . . 5 . . . 3 . . . . . . . 4 . 8 1 9 3 Parts Fried 190 | . 4 . . . 19 14 7 . . 4 . 8 2 18 6 11 2 . 5 . 2 . . 4 . 2 . 4 . . . . 5 . . 6 . 14 3 34 16 Impact Corruptions 73 | . . . . . . 2 . . . 1 . 4 . 29 7 18 6 . 3 . . . . . . . . . . . . . 3 . . . . . . . . Robots Melted 20 | . . . . . . . . . . . . . . . . 1 . . 2 1 . . 1 5 . 4 1 1 . . . 2 . . . . . 1 1 . . Combat Hostiles 18 | . . . . . . . . . . . . . . . . 1 . . 2 1 . . . 5 . 4 1 . . . . 2 . . . . . 1 1 . . Parts Melted 108 | . 2 . . . 1 . 1 1 . 1 1 4 2 1 . 5 . . 12 3 . . 3 32 . 9 3 8 . . . 6 2 . . . . 2 . 9 . Heat Transferred 49693 | . 1456 250 . . 500 609 938 625 . 833 333 838 3639 2370 1005 1295 298 . 3509 2646 . . 550 9430 . 4095 2636 2833 259 100 . 1068 1376 100 . 600 1020 1548 1193 1456 285 Parts Sabotaged 3 | . . . . . . . . . . . . . . . . . . . . . . . . . . . . 3 . . . . . . . . . . . . . Parts Stolen . | . . . . . . . . . . . . . . . . . . . . . . . . . . . . . . . . . . . . . . . . . . Parts Stripped . | . . . . . . . . . . . . . . . . . . . . . . . . . . . . . . . . . . . . . . . . . . Power Chain Reactions 34 | . 1 3 . . 5 2 3 . . 3 . 1 1 1 . . . . . 1 . . . 2 . . . . . . . . . . . 7 . . . 2 2 Alert | -11 -10 -10 -10 -9 -8 -8 -8 -8 -8 -8 -8 -7 -7 -7 -7 -7 -6 -6 -6 -6 -6 -6 -6 -5 -5 -5 -5 -5 -5 -5 -5 -4 -4 -4 -4 -4 -3 -3 -2 -1 -1 ------- Run | Yrd Mat Min Exi Min Mat Gar Mat Gar Mat Gar Mat Fac Gar Fac Gar Fac Fac Was Fac Ext Cet Arc Hub Fac Was Fac Gar Fac Upp Upp Zhi Pro Fac Upp Upp War Pro Res Res Acc Com Peak Influence 1754 | . 352 372 . . 516 1754 854 1745 953 1333 687 446 1239 650 1516 811 234 108 274 310 296 373 248 1531 534 414 1706 909 . . . . 286 . . . . 260 484 935 853 Initial 895 | . . 106 . . . 183 854 191 850 430 649 296 32 650 166 795 176 44 75 38 8 38 123 39 534 373 156 895 . . . . 156 . . . . 6 107 209 598 Average 354 | . 134 221 . . 242 1061 572 1078 679 973 622 153 700 173 927 434 159 80 86 86 179 162 121 410 534 171 946 437 . . . . 91 . . . . 139 344 373 656 Maximum Alert Level 5 | . 1 1 . . 2 5 3 5 3 4 2 2 4 2 4 3 1 . 1 1 1 1 1 4 2 2 5 3 . . . . 1 . . . . 1 2 3 3 Low Security (%) 46 | 100 74 53 . 100 37 5 . 4 . . . 66 18 64 3 . 63 100 91 91 84 65 87 49 . 62 1 26 . . . . 88 . . . . 72 19 8 . Level 1 24 | . 25 46 . . 55 9 23 5 . . . 28 8 32 23 53 36 . 8 8 15 34 12 10 . 36 8 21 . . . . 11 . . . . 27 57 64 . Level 2 13 | . . . . . 6 7 40 12 45 15 100 5 19 3 6 39 . . . . . . . 18 100 1 22 37 . . . . . . . . . . 22 17 84 Level 3 9 | . . . . . . 33 36 26 54 49 . . 28 . 8 6 . . . . . . . 13 . . 19 14 . . . . . . . . . . . 9 15 Level 4 5 | . . . . . . 26 . 37 . 35 . . 24 . 57 . . . . . . . . 8 . . 47 . . . . . . . . . . . . . . Level 5 . | . . . . . . 18 . 14 . . . . . . . . . . . . . . . . . . . . . . . . . . . . . . . . . High Security . | . . . . . . . . . . . . . . . . . . . . . . . . . . . . . . . . . . . . . . . . . . Max Security . | . . . . . . . . . . . . . . . . . . . . . . . . . . . . . . . . . . . . . . . . . . Squads Dispatched 164 | . 6 . . . 8 . 6 . 5 . 2 11 . 14 . 9 5 . 15 2 . . 3 18 . 11 . 9 . . . . 8 . . . . 11 3 15 3 Investigation 82 | . 5 . . . 6 . 4 . 3 . 2 6 . 5 . 5 3 . 8 1 . . 1 8 . 6 . 3 . . . . 2 . . . . 9 2 3 . Extermination 39 | . . . . . . . . . . . . 2 . 5 . 3 1 . 4 . . . 1 6 . 4 . 3 . . . . 4 . . . . . . 4 2 Reinforcement 26 | . 1 . . . 2 . . . 2 . . 3 . 1 . 1 1 . 3 1 . . 1 1 . 1 . 1 . . . . 2 . . . . 2 1 2 . Assault 10 | . . . . . . . 2 . . . . . . . . . . . . . . . . 3 . . . 2 . . . . . . . . . . . 2 1 Garrison 7 | . . . . . . . . . . . . . . 3 . . . . . . . . . . . . . . . . . . . . . . . . . 4 . Intercept . | . . . . . . . . . . . . . . . . . . . . . . . . . . . . . . . . . . . . . . . . . . Searches Triggered 1 | . . . . . . . . . . . . . . . . 1 . . . . . . . . . . . . . . . . . . . . . . . . . Construction Impeded 5 | . . . . . . . . . . . . . . 1 . . . . 1 1 . . 1 . . . . . . . . . . . . . . . 1 . . Haulers Reinforced 6 | . . . . . . . . . . . . 2 . . . . . . 1 . . . . 1 . 1 . . . . . . . . . . . 1 . . . Active Scanning Responses . | . . . . . . . . . . . . . . . . . . . . . . . . . . . . . . . . . . . . . . . . . . Cargo Convoy Interrupts 1 | . . . . . . . . . . . . . . . . . 1 . . . . . . . . . . . . . . . . . . . . . . . . Stealth | -11 -10 -10 -10 -9 -8 -8 -8 -8 -8 -8 -8 -7 -7 -7 -7 -7 -6 -6 -6 -6 -6 -6 -6 -5 -5 -5 -5 -5 -5 -5 -5 -4 -4 -4 -4 -4 -3 -3 -2 -1 -1 --------- Run | Yrd Mat Min Exi Min Mat Gar Mat Gar Mat Gar Mat Fac Gar Fac Gar Fac Fac Was Fac Ext Cet Arc Hub Fac Was Fac Gar Fac Upp Upp Zhi Pro Fac Upp Upp War Pro Res Res Acc Com Distress Signals 48 | . . . . . 4 . . . 1 . 3 1 . 1 . 2 . . 2 1 2 . . 4 . 3 . 6 . . . . 2 . . . 1 5 4 3 3 Communications Jammed . | . . . . . . . . . . . . . . . . . . . . . . . . . . . . . . . . . . . . . . . . . . Distress Signals . | . . . . . . . . . . . . . . . . . . . . . . . . . . . . . . . . . . . . . . . . . . Times Spotted 950 | . 29 8 . . 47 41 24 43 26 27 4 24 16 43 16 37 8 6 36 26 8 7 19 77 6 57 16 70 1 5 . 10 26 5 . 31 5 26 32 57 31 Peak Tracking Total 17 | . 4 3 . . 5 8 7 6 3 7 3 4 5 4 3 7 2 5 5 3 5 7 7 10 6 6 3 6 . 4 . 13 4 4 . 8 5 7 7 11 17 Tactical Retreats 84 | . 4 . . . 3 4 . 4 . 2 . 3 1 3 . 7 1 . 3 3 . . 2 6 . 7 . 9 . 1 . 2 4 3 . 2 2 1 1 4 2 Traps | -11 -10 -10 -10 -9 -8 -8 -8 -8 -8 -8 -8 -7 -7 -7 -7 -7 -6 -6 -6 -6 -6 -6 -6 -5 -5 -5 -5 -5 -5 -5 -5 -4 -4 -4 -4 -4 -3 -3 -2 -1 -1 ------- Run | Yrd Mat Min Exi Min Mat Gar Mat Gar Mat Gar Mat Fac Gar Fac Gar Fac Fac Was Fac Ext Cet Arc Hub Fac Was Fac Gar Fac Upp Upp Zhi Pro Fac Upp Upp War Pro Res Res Acc Com Traps Triggered 34 | . 3 . . . . 2 . 1 . 3 . 1 1 . 1 3 3 . 4 5 . . 1 1 . . . . . . . . 1 . . 1 . . . 2 1 Indirectly 3 | . . . . . . 1 . . . . . 1 . . . . . . . . . . . . . . . . . . . . . . . 1 . . . . . Trap Hack Attempts . | . . . . . . . . . . . . . . . . . . . . . . . . . . . . . . . . . . . . . . . . . . Triggered . | . . . . . . . . . . . . . . . . . . . . . . . . . . . . . . . . . . . . . . . . . . Disarmed 6 | . . . . . . . . . . . . 6 . . . . . . . . . . . . . . . . . . . . . . . . . . . . . Reprogrammed 57 | . 4 . . . 1 . . . . . . . . . . . . . 5 . . . . 5 . 18 . 13 . . . . 11 . . . . . . . . Reused 26 | . 1 . . . . . . . . . . . . . 4 . . . . . . . . . . 11 . 3 . . . . 5 . . . . 2 . . . Traps Extracted . | . . . . . . . . . . . . . . . . . . . . . . . . . . . . . . . . . . . . . . . . . . Installed 7 | . . . . . . . . . . . . . . . 4 . . . . . . . . . . . . . . . . . 1 . . . . 2 . . . Triggered 38 | . 1 . . . . . . . . . . . . 1 4 . 2 . . . . . . . . 11 . 3 . . . . 5 . . 8 1 2 . . . Most Traps Carried 4 | . . . . . . . . . . . . . . . 4 . . . . . . . . . . . . . 2 2 2 2 1 . . . 3 3 . . . Machines | -11 -10 -10 -10 -9 -8 -8 -8 -8 -8 -8 -8 -7 -7 -7 -7 -7 -6 -6 -6 -6 -6 -6 -6 -5 -5 -5 -5 -5 -5 -5 -5 -4 -4 -4 -4 -4 -3 -3 -2 -1 -1 ---------- Run | Yrd Mat Min Exi Min Mat Gar Mat Gar Mat Gar Mat Fac Gar Fac Gar Fac Fac Was Fac Ext Cet Arc Hub Fac Was Fac Gar Fac Upp Upp Zhi Pro Fac Upp Upp War Pro Res Res Acc Com Machines Disabled 129 | . 2 5 . . 2 11 3 9 5 6 . 1 11 5 10 . 2 . 1 2 . 1 3 15 . 5 16 4 . . . . 3 . . 2 2 . 2 1 . Max in Single Turn 7 | . 2 5 . . 1 2 2 1 2 1 . 1 2 2 1 . 1 . 1 1 . . 1 7 . 1 2 1 . . . . 1 . . 1 1 . 1 1 . Garrison Access 26 | . . . . . . . . . . . . 3 . 2 . 1 1 . 2 . . . 1 3 . 3 . 2 . . . . 2 . . . . 2 1 3 . Garrison Relay 28 | . . . . . . 4 . 6 . 4 . . 5 . 4 . . . . . . . . . . . 5 . . . . . . . . . . . . . . Phase Generator 3 | . . . . . . 1 . . . . . . 1 . . . . . . . . . . . . . 1 . . . . . . . . . . . . . . Network Hub 3 | . . . . . . . . . . . . . . . . . . . . . . . 3 . . . . . . . . . . . . . . . . . . Machines Repaired . | . . . . . . . . . . . . . . . . . . . . . . . . . . . . . . . . . . . . . . . . . . Machines Dismantled 1 | . . . . . . . . . . . . . . . . . . . . . . . . . . . . . . . . . . . . 1 . . . . . Machines Sabotaged 1 | . . . . . . . . . . . . . . . . . . . . . . . 1 . . . . . . . . . . . . . . . . . . Overloaded Fab Kills . | . . . . . . . . . . . . . . . . . . . . . . . . . . . . . . . . . . . . . . . . . . Hacking | -11 -10 -10 -10 -9 -8 -8 -8 -8 -8 -8 -8 -7 -7 -7 -7 -7 -6 -6 -6 -6 -6 -6 -6 -5 -5 -5 -5 -5 -5 -5 -5 -4 -4 -4 -4 -4 -3 -3 -2 -1 -1 --------- Run | Yrd Mat Min Exi Min Mat Gar Mat Gar Mat Gar Mat Fac Gar Fac Gar Fac Fac Was Fac Ext Cet Arc Hub Fac Was Fac Gar Fac Upp Upp Zhi Pro Fac Upp Upp War Pro Res Res Acc Com Machines Accessed 358 | . 10 . 2 . 12 3 8 3 7 3 3 33 3 30 2 21 11 . 28 16 2 1 4 31 . 31 . 24 . . 5 1 19 1 . 3 . 16 2 22 1 Terminals 204 | . 7 . . . 9 3 5 3 5 3 2 17 3 15 2 13 6 . 15 15 2 . 3 13 . 17 . 12 . . . 1 11 1 . . . 6 . 14 1 Fabricators 40 | . . . . . . . . . . . . 4 . 5 . 2 2 . 5 . . . . 6 . 5 . 3 . . . . 2 . . . . 4 . 2 . Repair Stations 35 | . 1 . . . 1 . 1 . . . . 3 . 3 . 3 2 . 2 . . . . 5 . 3 . 5 . . . . 3 . . . . 2 . 1 . Recycling Units 13 | . 2 . . . 1 . 1 . . . 1 2 . 2 . . . . 2 1 . . . . . . . . . . . . . . . . . . . 1 . Scanalyzers 23 | . . . . . . . . . 1 . . 3 . 2 . 2 . . 2 . . . . 3 . 2 . 2 . . . . 1 . . . . 2 2 1 . Garrison Access 32 | . . . . . 1 . 1 . 1 . . 4 . 3 . 1 1 . 2 . . . 1 4 . 4 . 2 . . . . 2 . . . . 2 . 3 . Total Hacks 1382 | . 39 . 2 . 55 6 22 9 22 6 10 120 7 97 4 59 33 . 98 33 6 25 9 151 . 141 . 126 . . 18 4 85 1 . 13 . 68 10 102 1 Successful 925 | . 22 . 2 . 33 1 10 1 13 3 4 83 3 67 2 41 26 . 63 19 3 25 6 107 . 98 . 81 . . 18 4 59 1 . 13 . 45 9 63 . Failed 455 | . 17 . . . 22 5 12 8 9 3 6 37 4 30 2 18 7 . 35 14 3 . 3 43 . 42 . 45 . . . . 26 . . . . 23 1 39 1 Catastrophic 62 | . 2 . . . 2 . 3 . 1 . 1 4 1 4 . 1 . . 11 2 1 . . 1 . 6 . 3 . . . . 5 . . . . 8 . 6 . Database Lockouts 2 | . . . . . . . . . . . . . . . . . . . . . . . . 1 . 1 . . . . . . . . . . . . . . . Manual 591 | . 26 . 1 . 38 . 15 1 17 . 10 50 2 41 . 26 15 . 50 9 1 . 7 56 . 59 . 60 . . . . 29 . . . . 33 2 42 1 Terminals 869 | . 35 . . . 45 6 15 9 17 6 9 64 7 55 4 37 21 . 60 31 6 . 8 81 . 91 . 85 . . . 4 57 1 . . . 40 . 74 1 Fabricators 98 | . . . . . . . . . . . . 9 . 13 . 4 5 . 13 . . . . 15 . 14 . 9 . . . . 5 . . . . 7 . 4 . Repair Stations 145 | . 2 . . . 8 . 4 . . . . 9 . 11 . 8 6 . 8 . . . . 24 . 14 . 20 . . . . 17 . . . . 5 . 9 . Recycling Units 25 | . 2 . . . 1 . 1 . . . 1 4 . 4 . . . . 6 2 . . . . . . . . . . . . . . . . . . . 4 . Scanalyzers 140 | . . . . . . . . . 4 . . 26 . 11 . 8 . . 9 . . . . 26 . 14 . 10 . . . . 4 . . . . 14 10 4 . Garrison Access 47 | . . . . . 1 . 2 . 1 . . 8 . 3 . 2 1 . 2 . . . 1 5 . 8 . 2 . . . . 2 . . . . 2 . 7 . Terminal Hacks 371 | . 13 . 2 . 13 1 4 1 7 3 1 23 3 19 2 10 6 . 19 16 3 25 3 28 . 37 . 26 . . 18 4 27 1 . 13 . 12 . 31 . Record 45 | . . . 1 . . . . . . . . . . . . . . . . . 2 25 . . . 2 . . . . 6 4 . 1 . . . . . 4 . Part Schematic 41 | . . . . . . . . . . . . 8 . 2 . . . . 2 1 . . . 5 . 5 . 4 . . 4 . 7 . . . . 3 . . . Robot Schematic 1 | . . . . . . . . . . . . 1 . . . . . . . . . . . . . . . . . . . . . . . . . . . . . Robot Analysis 34 | . 5 . . . 4 . . . . . . 1 . 4 . . . . 4 . . . . 3 . 2 . 2 . . 4 . 1 . . . . . . 4 . Prototype ID Bank 41 | . 2 . . . 1 . . . . . . 2 . . . 1 1 . 2 1 . . . 4 . 5 . 1 . . 4 . 1 . . 12 . 3 . 1 . Open Door 16 | . . . . . . . . . . . . . 1 . 1 . 1 . . 9 1 . . . . . . . . . . . . . . 1 . . . 2 . Branch Access Points 6 | . . . . . . . . . . . . . . . . 1 1 . . . . . . . . 1 . . . . . . 1 . . . . 1 . 1 . Emergency Access Points 3 | . . . . . . 1 . . . . . . 1 . 1 . . . . . . . . . . . . . . . . . . . . . . . . . . Machine Index 5 | . . . . . . . . . . . . . . . . . . . 1 . . . . . . 1 . 1 . . . . . . . . . 1 . 1 . Terminal Index 9 | . 1 . . . . . . . . . . 1 . 1 . 1 1 . 1 . . . . 1 . 1 . . . . . . 1 . . . . . . . . Fabricator Index 1 | . . . . . . . . . . . . . . . . . . . . . . . . 1 . . . . . . . . . . . . . . . . . Repair Station Index 3 | . . . . . . . . . . . . 1 . . . . . . . . . . . 1 . . . . . . . . 1 . . . . . . . . Recycling Unit Index 2 | . . . . . . . . . . . . . . . . . . . . . . . . 1 . . . . . . . . 1 . . . . . . . . Scanalyzer Index 6 | . . . . . . . . . . . . 2 . 1 . . . . . . . . . 1 . . . 1 . . . . 1 . . . . . . . . Garrison Index 7 | . . . . . . . . . . . . 1 . 1 . . 1 . . . . . . 1 . . . 1 . . . . 1 . . . . . . 1 . Alert Level 42 | . 1 . . . 2 . 1 . 3 . . 2 . 2 . 1 1 . 3 1 . . . 4 . 4 . 5 . . . . 3 . . . . 3 . 6 . Unreport Threat 48 | . 1 . . . 3 . 3 . 4 . 1 2 . 6 . 4 . . 2 1 . . 2 2 . 7 . 5 . . . . 2 . . . . 1 . 2 . Locate Traps 14 | . 1 . . . 1 . . . . . . . . . . 1 . . 3 2 . . . 2 . 3 . . . . . . 1 . . . . . . . . Disarm Traps 2 | . . . . . . . . . . . . 2 . . . . . . . . . . . . . . . . . . . . . . . . . . . . . Reprogram Traps 17 | . 1 . . . 1 . . . . . . . . . . . . . 1 . . . . 1 . 6 . 3 . . . . 4 . . . . . . . . Dispatch Records 2 | . . . . . 1 . . . . . . . . 1 . . . . . . . . . . . . . . . . . . . . . . . . . . . Maintenance Status 1 | . . . . . . . . . . . . . . 1 . . . . . . . . . . . . . . . . . . . . . . . . . . . Recall Investigation 4 | . . . . . . . . . . . . . . . . . . . . 1 . . . . . . . 1 . . . . . . . . . . . 2 . Recall Extermination 3 | . . . . . . . . . . . . . . . . . . . . . . . . . . . . . . . . . 1 . . . . . . 2 . Recall Reinforcements 3 | . . . . . . . . . . . . . . . . 1 . . . . . . . . . . . 1 . . . . . . . . . . . 1 . Zone Layout 9 | . 1 . . . . . . . . . . . . . . . . . . . . . 1 1 . . . 1 . . . . 1 . . . . . . 4 . Garrison Registry 2 | . . . . . . . . . . 1 . . 1 . . . . . . . . . . . . . . . . . . . . . . . . . . . . Patrol Navigation 2 | . . . . . . . . 1 . 1 . . . . . . . . . . . . . . . . . . . . . . . . . . . . . . . Security Stations 1 | . . . . . . . . . . 1 . . . . . . . . . . . . . . . . . . . . . . . . . . . . . . . Derelict Proto ID Bank 1 | . . . 1 . . . . . . . . . . . . . . . . . . . . . . . . . . . . . . . . . . . . . . Fabricator Hacks 77 | . . . . . . . . . . . . 8 . 9 . 4 4 . 9 . . . . 11 . 11 . 7 . . . . 4 . . . . 7 . 3 . Network Status 3 | . . . . . . . . . . . . . . . . . . . . . . . . . . 1 . 1 . . . . . . . . . . . 1 . Load Schematic 36 | . . . . . . . . . . . . 4 . 4 . 2 2 . 5 . . . . 5 . 5 . 3 . . . . 2 . . . . 3 . 1 . Build 38 | . . . . . . . . . . . . 4 . 5 . 2 2 . 4 . . . . 6 . 5 . 3 . . . . 2 . . . . 4 . 1 . Repair Station Hacks 125 | . 2 . . . 8 . 3 . . . . 7 . 9 . 8 6 . 7 . . . . 22 . 14 . 16 . . . . 13 . . . . 4 . 6 . Scan Component 65 | . 1 . . . 4 . 2 . . . . 4 . 5 . 4 3 . 4 . . . . 11 . 7 . 8 . . . . 7 . . . . 2 . 3 . Repair 60 | . 1 . . . 4 . 1 . . . . 3 . 4 . 4 3 . 3 . . . . 11 . 7 . 8 . . . . 6 . . . . 2 . 3 . Recycling Unit Hacks 1 | . . . . . . . . . . . . . . . . . . . . . . . . . . . . . . . . . . . . . . . . 1 . Retrieve Components 1 | . . . . . . . . . . . . . . . . . . . . . . . . . . . . . . . . . . . . . . . . 1 . Scanalyzer 119 | . . . . . . . . . 4 . . 25 . 11 . 7 . . 8 . . . . 18 . 11 . 10 . . . . 4 . . . . 11 7 3 . Insert Component 53 | . . . . . . . . . 2 . . 12 . 5 . 3 . . 3 . . . . 8 . 5 . 5 . . . . 2 . . . . 4 3 1 . Analyze 66 | . . . . . . . . . 2 . . 13 . 6 . 4 . . 5 . . . . 10 . 6 . 5 . . . . 2 . . . . 7 4 2 . Garrison Access Hacks 32 | . . . . . 1 . 1 . 1 . . 4 . 3 . 1 1 . 2 . . . 1 4 . 4 . 2 . . . . 2 . . . . 2 . 3 . Unlock Access 7 | . . . . . 1 . 1 . 1 . . 1 . 1 . . . . . . . . . 1 . 1 . . . . . . . . . . . . . . . Seal Access 25 | . . . . . . . . . . . . 3 . 2 . 1 1 . 2 . . . 1 3 . 3 . 2 . . . . 2 . . . . 2 . 3 . Unauthorized Hacks 200 | . 7 . . . 11 . 2 . 1 . 3 16 . 16 . 11 9 . 18 3 . . 2 24 . 21 . 20 . . . . 9 . . . . 9 2 16 . Terminals 177 | . 5 . . . 10 . 1 . 1 . 2 15 . 12 . 10 9 . 15 2 . . 2 23 . 20 . 20 . . . . 9 . . . . 7 . 14 . Assimilate 37 | . 1 . . . 1 . 1 . . . . 6 . 2 . 5 1 . 2 . . . . 5 . 4 . 5 . . . . . . . . . 2 . 2 . Botnet 64 | . 3 . . . 3 . . . 1 . 2 4 . 2 . 3 4 . 6 2 . . 1 7 . 5 . 7 . . . . 4 . . . . 5 . 5 . Operators 6 | . 1 . . . . . . . . . . . . 1 . . . . 1 . . . . 1 . 1 . . . . . . . . . . . . . 1 . Skim 69 | . . . . . 6 . . . . . . 5 . 7 . 2 4 . 6 . . . . 10 . 10 . 8 . . . . 5 . . . . . . 6 . Sabotage 1 | . . . . . . . . . . . . . . . . . . . . . . . 1 . . . . . . . . . . . . . . . . . . Fabricators . | . . . . . . . . . . . . . . . . . . . . . . . . . . . . . . . . . . . . . . . . . . Repair Stations . | . . . . . . . . . . . . . . . . . . . . . . . . . . . . . . . . . . . . . . . . . . Recycling Units 16 | . 2 . . . 1 . 1 . . . 1 1 . 4 . . . . 3 1 . . . . . . . . . . . . . . . . . . . 2 . Reject 4 | . . . . . . . . . . . . . . 2 . . . . 1 . . . . . . . . . . . . . . . . . . . . 1 . Mask 7 | . . . . . . . . . . . . 1 . 2 . . . . 2 1 . . . . . . . . . . . . . . . . . . . 1 . Tunnel 5 | . 2 . . . 1 . 1 . . . 1 . . . . . . . . . . . . . . . . . . . . . . . . . . . . . . Scanalyzers 7 | . . . . . . . . . . . . . . . . 1 . . . . . . . 1 . 1 . . . . . . . . . . . 2 2 . . Extract 7 | . . . . . . . . . . . . . . . . 1 . . . . . . . 1 . 1 . . . . . . . . . . . 2 2 . . Garrison Access . | . . . . . . . . . . . . . . . . . . . . . . . . . . . . . . . . . . . . . . . . . . Data Cores Recovered 1 | . . . . . . . . . . . . . . . . 1 . . . . . . . . . . . . . . . . . . . . . . . . . Used . | . . . . . . . . . . . . . . . . . . . . . . . . . . . . . . . . . . . . . . . . . . Hacking Detections 250 | . 7 . . . 9 3 7 3 5 2 2 30 2 25 2 19 8 . 23 4 1 . 2 20 . 19 . 14 . . . . 15 . . . . 11 1 16 . Full Trace Events 68 | . 3 . . . 4 2 2 3 3 . 2 6 1 5 . 3 3 . 8 1 . . . 7 . 5 . 3 . . . . 2 . . . . 3 . 2 . Feedback Events 3 | . . . . . 1 . 1 . . . . . . . . 1 . . . . . . . . . . . . . . . . . . . . . . . . . Corruption 3 | . . . . . 1 . 1 . . . . . . . . 1 . . . . . . . . . . . . . . . . . . . . . . . . . Feedback Blocked . | . . . . . . . . . . . . . . . . . . . . . . . . . . . . . . . . . . . . . . . . . . Robot Schematics Acquired 1 | . . . . . . . . . . . . 1 . . . . . . . . . . . . . . . . . . . . . . . . . . . . . Robots Built . | . . . . . . . . . . . . . . . . . . . . . . . . . . . . . . . . . . . . . . . . . . Authchips . | . . . . . . . . . . . . . . . . . . . . . . . . . . . . . . . . . . . . . . . . . . Time . | . . . . . . . . . . . . . . . . . . . . . . . . . . . . . . . . . . . . . . . . . . Total Robot Build Rating . | . . . . . . . . . . . . . . . . . . . . . . . . . . . . . . . . . . . . . . . . . . Part Schematics Acquired 110 | . . . . . . . . . 1 . . 19 . 6 . 4 . . 5 1 . . . 15 . 11 . 9 . . 4 . 9 . . . . 18 7 1 . Parts Built 54 | . . . . . . . . . . . . 5 . 7 . 1 4 . 6 . . . . 10 . 6 . 5 . . . . 4 . . . . 5 . 1 . Authchips . | . . . . . . . . . . . . . . . . . . . . . . . . . . . . . . . . . . . . . . . . . . Time 3321 | . . . . . . . . . . . . 279 . 336 . 212 106 . 235 . . . . 662 . 666 . 249 . . . . 175 . . . . 327 . 74 . Total Part Build Rating 356 | . . . . . . . . . . . . 27 . 40 . 6 24 . 35 . . . . 75 . 35 . 38 . . . . 28 . . . . 39 . 9 . Parts Repaired 60 | . 1 . . . 4 . 1 . . . . 3 . 4 . 4 3 . 3 . . . . 11 . 7 . 8 . . . . 6 . . . . 2 . 3 . Time 2933 | . 26 . . . 134 . 78 . . . . 144 . 153 . 162 86 . 106 . . . . 742 . 414 . 464 . . . . 182 . . . . 134 . 108 . Parts Recycled . | . . . . . . . . . . . . . . . . . . . . . . . . . . . . . . . . . . . . . . . . . . Recycled Matter . | . . . . . . . . . . . . . . . . . . . . . . . . . . . . . . . . . . . . . . . . . . Retrieved Matter . | . . . . . . . . . . . . . . . . . . . . . . . . . . . . . . . . . . . . . . . . . . Retrieved Components 1 | . . . . . . . . . . . . . . . . . . . . . . . . . . . . . . . . . . . . . . . . 1 . Parts Scanalyzed 49 | . . . . . . . . . 2 . . 11 . 4 . 2 . . 3 . . . . 7 . 5 . 5 . . . . 2 . . . . 4 3 1 . Part Schematics Acquired 48 | . . . . . . . . . 1 . . 11 . 4 . 2 . . 3 . . . . 7 . 5 . 5 . . . . 2 . . . . 4 3 1 . Parts Damaged 4 | . . . . . . . . . . . . 1 . 1 . . . . . . . . . . . . . 2 . . . . . . . . . . . . . Bothacking | -11 -10 -10 -10 -9 -8 -8 -8 -8 -8 -8 -8 -7 -7 -7 -7 -7 -6 -6 -6 -6 -6 -6 -6 -5 -5 -5 -5 -5 -5 -5 -5 -4 -4 -4 -4 -4 -3 -3 -2 -1 -1 ------------ Run | Yrd Mat Min Exi Min Mat Gar Mat Gar Mat Gar Mat Fac Gar Fac Gar Fac Fac Was Fac Ext Cet Arc Hub Fac Was Fac Gar Fac Upp Upp Zhi Pro Fac Upp Upp War Pro Res Res Acc Com Used RIF Installer . | . . . . . . . . . . . . . . . . . . . . . . . . . . . . . . . . . . . . . . . . . . Robots Hacked 7 | . . . 4 . . . . . . . . . . . . . . . . . . 3 . . . . . . . . . . . . . . . . . . . Non-combat 3 | . . . 3 . . . . . . . . . . . . . . . . . . . . . . . . . . . . . . . . . . . . . . Combat 4 | . . . 1 . . . . . . . . . . . . . . . . . . 3 . . . . . . . . . . . . . . . . . . . Robot Hacks Applied 7 | . . . 4 . . . . . . . . . . . . . . . . . . 3 . . . . . . . . . . . . . . . . . . . parse_system 7 | . . . 4 . . . . . . . . . . . . . . . . . . 3 . . . . . . . . . . . . . . . . . . . Relay Couplers Released 123 | . . . . . . 20 . 26 . 16 . . 20 3 15 . . . . . . . . . . . 20 . . . . . 2 . . . . . 1 . . Machine Destruction 120 | . . . . . . 20 . 26 . 16 . . 20 . 15 . . . . . . . . . . . 20 . . . . . 2 . . . . . 1 . . Programmers 3 | . . . . . . . . . . . . . . 3 . . . . . . . . . . . . . . . . . . . . . . . . . . . Fabnet Peak Effective % . | . . . . . . . . . . . . . . . . . . . . . . . . . . . . . . . . . . . . . . . . . . Robots Rewired 27 | . . . . . . 5 1 . . . . . . . 2 . . . . 15 . . . . . . 1 1 . . . . 1 . . 1 . . . . . Allies Hacked . | . . . . . . . . . . . . . . . . . . . . . . . . . . . . . . . . . . . . . . . . . . Hacks Repelled . | . . . . . . . . . . . . . . . . . . . . . . . . . . . . . . . . . . . . . . . . . . Allies | -11 -10 -10 -10 -9 -8 -8 -8 -8 -8 -8 -8 -7 -7 -7 -7 -7 -6 -6 -6 -6 -6 -6 -6 -5 -5 -5 -5 -5 -5 -5 -5 -4 -4 -4 -4 -4 -3 -3 -2 -1 -1 -------- Run | Yrd Mat Min Exi Min Mat Gar Mat Gar Mat Gar Mat Fac Gar Fac Gar Fac Fac Was Fac Ext Cet Arc Hub Fac Was Fac Gar Fac Upp Upp Zhi Pro Fac Upp Upp War Pro Res Res Acc Com Total Allies 83 | . . 3 . . 1 5 1 2 . . . 6 1 2 4 4 1 . 1 26 5 . . 4 . 3 1 5 . . . . 4 . . 1 . 2 . 1 . Largest Group 16 | . . 3 2 2 2 5 1 2 . . . 5 5 4 5 5 1 . 1 12 16 13 7 3 . 1 2 3 . . . . 2 . . 1 . 2 2 1 . Highest-Rated Group 931 | . . 40 32 32 32 81 10 40 . . . 114 119 88 242 110 10 . 26 451 931 767 417 78 . 26 111 101 . . . . 92 . . 47 . 90 73 45 . Highest-Rated Ally 159 | . . 16 16 16 16 18 10 20 . . . 26 31 26 95 39 10 . 26 159 159 153 96 26 . 26 85 49 . . . . 48 . . 47 . 45 40 45 . Total Orders 233 | . . . . . 5 . . . . . . 20 16 33 24 11 2 . . 9 . . 6 27 . 21 9 20 . . . . . . . . . 9 6 15 . STAY 124 | . . . . . 3 . . . . . . 10 8 16 13 7 1 . . 5 . . 5 14 . 11 6 11 . . . . . . . . . 4 3 7 . ROAM 2 | . . . . . . . . . . . . . . 1 . . . . . . . . . . . . . . . . . . . . . . . . . 1 . FOLLOW 107 | . . . . . 2 . . . . . . 10 8 16 11 4 1 . . 4 . . 1 13 . 10 3 9 . . . . . . . . . 5 3 7 . Ally Attacks 324 | . . 13 . . 53 20 1 9 . . . . 9 . 9 24 . . . 82 17 36 17 . . . 17 7 . . . . 8 . . 2 . . . . . Total Damage 6777 | . . 159 . . 674 327 54 304 . . . . 42 . 277 335 . . . 1406 456 1262 260 . . . 832 135 . . . . 214 . . 40 . . . . . Kills 62 | . . 3 . . 9 5 1 3 . . . . . . 3 2 . . . 17 3 8 2 . . . 5 . . . . . . . . 1 . . . . . Allies Corrupted 1 | . . . . . . . . . . . . . . . . . . . . . . . 1 . . . . . . . . . . . . . . . . . . Allies Melted 4 | . . . . . . . . . . . . . . . . . . . . . . . . . . . 2 . . . . . . . . . . . 2 . . Intel | -11 -10 -10 -10 -9 -8 -8 -8 -8 -8 -8 -8 -7 -7 -7 -7 -7 -6 -6 -6 -6 -6 -6 -6 -5 -5 -5 -5 -5 -5 -5 -5 -4 -4 -4 -4 -4 -3 -3 -2 -1 -1 ------- Run | Yrd Mat Min Exi Min Mat Gar Mat Gar Mat Gar Mat Fac Gar Fac Gar Fac Fac Was Fac Ext Cet Arc Hub Fac Was Fac Gar Fac Upp Upp Zhi Pro Fac Upp Upp War Pro Res Res Acc Com Robot Analysis Total 33 | . 5 . . . 4 . . . . . . 1 . 4 . . . . 4 . . . . 2 . 2 . 2 . . 4 . 1 . . . . . . 4 . Derelict Logs Recovered 11 | . . 2 . 2 . . . . . . . . . . . . . . . . . . . . . . . . 1 1 . 2 . 1 2 . . . . . . Drone Launches . | . . . . . . . . . . . . . . . . . . . . . . . . . . . . . . . . . . . . . . . . . . Drone Recoveries . | . . . . . . . . . . . . . . . . . . . . . . . . . . . . . . . . . . . . . . . . . . Exploration | -11 -10 -10 -10 -9 -8 -8 -8 -8 -8 -8 -8 -7 -7 -7 -7 -7 -6 -6 -6 -6 -6 -6 -6 -5 -5 -5 -5 -5 -5 -5 -5 -4 -4 -4 -4 -4 -3 -3 -2 -1 -1 ------------- Run | Yrd Mat Min Exi Min Mat Gar Mat Gar Mat Gar Mat Fac Gar Fac Gar Fac Fac Was Fac Ext Cet Arc Hub Fac Was Fac Gar Fac Upp Upp Zhi Pro Fac Upp Upp War Pro Res Res Acc Com Turns Passed 59574 | 79 1637 677 441 551 2523 1473 2079 1175 1399 874 305 3478 1214 4113 1198 1884 931 106 3416 2523 418 104 541 5236 75 4128 1184 3597 518 597 86 518 2724 501 136 510 1001 1340 1084 2658 542 Spaces Moved 51042 | 46 775 291 267 342 932 732 517 609 580 431 172 3616 844 4419 1061 1893 1043 160 3544 1725 195 93 419 3821 141 4100 521 3863 447 628 162 367 2388 410 232 855 724 2268 1979 3063 367 Core 46 | 4 . . . . . . . . . . . . . . . . . . . . . . . . . . . . . 9 . . . . . . . . . . 33 Treads 7853 | 42 775 291 267 342 932 732 517 609 580 431 172 562 . 3 . . . . . . . . . 796 . 208 521 . . . . . . . . . . . . . 73 Legs 1071 | . . . . . . . . . . . . . . . . . . . . 865 195 11 . . . . . . . . . . . . . . . . . . . Wheels . | . . . . . . . . . . . . . . . . . . . . . . . . . . . . . . . . . . . . . . . . . . Hover 42072 | . . . . . . . . . . . . 3054 844 4416 1061 1893 1043 160 3544 860 . 82 419 3025 141 3892 . 3863 447 619 162 367 2388 410 232 855 724 2268 1979 3063 261 Flight . | . . . . . . . . . . . . . . . . . . . . . . . . . . . . . . . . . . . . . . . . . . Fastest Speed 32 | 50 160 160 160 160 145 152 152 152 152 152 152 48 56 38 56 56 48 48 48 48 120 58 53 35 45 45 160 43 48 48 48 48 36 36 43 32 32 32 36 40 42 Average Speed 68 | 150 160 160 160 160 154 152 154 152 152 152 152 68 71 53 61 58 53 48 48 88 120 65 62 81 45 64 160 46 93 63 48 53 42 40 43 36 32 38 38 45 68 Slowest Speed 800 | 160 160 160 160 160 160 153 160 152 152 152 152 480 106 160 106 106 106 48 98 190 120 120 126 245 45 260 160 111 108 800 48 108 111 43 43 105 32 97 92 97 152 Overloaded Moves . | . . . . . . . . . . . . . . . . . . . . . . . . . . . . . . . . . . . . . . . . . . Propulsion Burnouts . | . . . . . . . . . . . . . . . . . . . . . . . . . . . . . . . . . . . . . . . . . . Robots Hopped . | . . . . . . . . . . . . . . . . . . . . . . . . . . . . . . . . . . . . . . . . . . Cave-ins Triggered 1 | . . . . . . . . . . . . . . . . . . . . 1 . . . . . . . . . . . . . . . . . . . . . Exploration Rate (%) 65 | 4 93 77 64 86 64 80 59 73 67 65 21 78 75 78 88 54 27 84 81 75 79 76 40 71 86 71 83 67 74 82 60 60 45 65 46 80 71 55 61 62 13 Regions Visited 41 Branch Regions 16 Pre-discovered Areas 27 | . 2 . 1 1 4 . 1 . . . 1 . . 1 . . . . . . . . . 6 . 4 . . 1 . 3 1 1 . . . . . . . . Known Exits Taken 24 | . . . . . 1 . 1 . 1 . 1 1 . 1 . 1 . . 1 1 . . 1 . . 1 . 1 1 1 1 1 1 1 1 1 1 1 1 1 . Unknown Exits Taken 7 | 1 1 1 1 1 . . . . . . . . . . . . . . . . 1 1 . . . . . . . . . . . . . . . . . . . Scrap Searched 12 | . . 1 . 2 . . . . . . . . . . . . . . . . . . . . . . . . 2 3 . 2 . . 2 . . . . . . Spaces Dug 463 | . . . . . 2 4 4 3 2 . . 17 2 39 3 29 20 1 42 8 . . 14 33 . 64 9 32 1 6 . 3 25 6 4 5 14 19 5 45 2 Terrain Destroyed 1949 | . 2 27 . . 23 169 25 60 45 16 8 29 147 50 140 30 21 102 69 43 . . 21 216 . 109 137 75 2 19 . 11 55 15 7 29 40 44 38 96 29 Melee 166 | . . . . . 2 4 . . . . . 15 2 38 3 29 20 . 9 1 . . 11 . . . . 5 . . . . 16 5 . 5 . 1 . . . Projectile 753 | . . . . . . . 17 4 45 1 8 7 . 5 . 1 1 1 60 38 . . 10 98 . 109 20 70 2 19 . 11 39 10 7 . 40 43 7 76 4 AOE 1030 | . 2 27 . . 21 165 8 56 . 15 . 7 145 7 137 . . 101 . 4 . . . 118 . . 117 . . . . . . . . 24 . . 31 20 25 Terrain Rammed . | . . . . . . . . . . . . . . . . . . . . . . . . . . . . . . . . . . . . . . . . . . Walls Destroyed . | . . . . . . . . . . . . . . . . . . . . . . . . . . . . . . . . . . . . . . . . . . Machines Disabled . | . . . . . . . . . . . . . . . . . . . . . . . . . . . . . . . . . . . . . . . . . . Actions | -11 -10 -10 -10 -9 -8 -8 -8 -8 -8 -8 -8 -7 -7 -7 -7 -7 -6 -6 -6 -6 -6 -6 -6 -5 -5 -5 -5 -5 -5 -5 -5 -4 -4 -4 -4 -4 -3 -3 -2 -1 -1 --------- Run | Yrd Mat Min Exi Min Mat Gar Mat Gar Mat Gar Mat Fac Gar Fac Gar Fac Fac Was Fac Ext Cet Arc Hub Fac Was Fac Gar Fac Upp Upp Zhi Pro Fac Upp Upp War Pro Res Res Acc Com Total 72273 | 53 1058 483 278 346 1863 970 1743 751 991 557 200 4497 1344 5928 1484 2514 1352 179 5070 2563 372 137 636 5628 151 5352 744 5462 538 808 168 655 4007 719 260 1018 1418 2733 2286 4303 654 Wait 16477 | . 173 179 . 2 783 32 1167 59 328 31 13 720 352 1242 232 462 256 4 1333 583 148 22 143 1402 4 994 130 1268 69 156 . 253 1424 276 21 85 638 247 131 920 195 Move 51000 | 45 774 290 266 341 931 728 516 608 580 430 171 3615 843 4418 1060 1892 1043 159 3543 1723 194 92 418 3821 140 4099 520 3862 446 627 161 366 2387 409 231 854 723 2267 1978 3062 367 Hop . | . . . . . . . . . . . . . . . . . . . . . . . . . . . . . . . . . . . . . . . . . . Pick Up 413 | 2 17 . 2 1 14 5 5 . 7 5 1 14 4 21 15 10 4 1 16 14 6 4 6 52 2 24 1 34 4 2 . 1 24 3 . 8 3 20 27 29 5 Fast Attach 201 | 6 8 1 . . 8 5 4 1 1 1 . 10 . 6 4 5 5 1 5 9 2 . 5 20 1 9 4 19 . . 3 1 20 . 1 7 . 10 8 11 . Attach 261 | . . . . . 2 3 2 . 1 1 . 7 7 20 15 13 2 . 5 14 1 5 5 36 1 18 . 26 1 . . 2 10 2 . 4 2 7 9 23 17 Detach 136 | . . . . . 1 2 . . . . . 5 4 11 6 10 1 2 1 8 . 2 1 25 . 8 . 12 1 . . 4 5 1 . 1 . 5 2 15 3 Swap 331 | . 5 . 3 . 15 16 5 10 3 6 3 14 8 25 17 19 5 . 36 12 1 1 6 17 1 10 2 13 6 . 2 2 3 . . 2 . 15 18 28 2 Drop 484 | . 14 1 2 1 16 7 4 1 8 5 2 22 6 13 19 8 4 2 17 16 9 6 7 51 2 23 4 43 3 2 2 4 33 4 . 16 1 28 29 32 17 Fire 2373 | . 63 9 . . 89 98 36 72 56 77 10 68 97 93 64 43 4 10 94 97 11 . 25 203 . 167 76 146 8 21 . 22 78 19 7 23 51 131 84 183 38 Melee 359 | . . . 5 . 2 10 . . . 1 . 21 10 79 33 52 28 . 20 3 . 5 20 . . . . 38 . . . . 21 5 . 5 . 1 . . . Ram 1 | . . . . . . . . . . . . . . . . . . . . . . . . . . . . . . . . . . . . . . . . . 1 Kick . | . . . . . . . . . . . . . . . . . . . . . . . . . . . . . . . . . . . . . . . . . . Crush 19 | . 4 3 . 1 2 . . . 7 . . 1 . . . . . . . . . . . 1 . . . . . . . . . . . . . . . . . Escape Stasis 81 | . . . . . . . . . . . . . 13 . 13 . . . . 46 . . . . . . . . . . . . . . . . . . . . 9 Rewire 121 | . . . . . . 64 4 . . . . . . . 2 . . . . 38 . . . . . . 7 1 . . . . 1 . . 4 . . . . . Trap 7 | . . . . . . . . . . . . . . . 4 . . . . . . . . . . . . . . . . . 1 . . . . 2 . . . Miscellaneous 9 | . . . . . . . . . . . . . . . . . . . . . . . . . . . . . . . . . . . . 9 . . . . . Route ------- -11/Scrapyard -10/Materials (discovered 6 exits: [*Mat x3] / [*Min x2] / [*Sub]) -10/Mines (discovered 2 exits: [*Mat] / *Exi) -10/Exiles -9/Mines (discovered 2 exits: *Mat x2) -8/Materials (discovered 4 exits: *Fac x3 / Gar) -8/Garrison (discovered 3 exits: *Mat x3) -8/Materials (discovered 3 exits: *Fac x2 / Gar) -8/Garrison (discovered 4 exits: *Mat x4) -8/Materials (discovered 3 exits: *Fac x2 / Gar) -8/Garrison (discovered 3 exits: *Mat x3) -8/Materials -7/Factory (discovered 9 exits: *Fac x4 / *Sto x2 / *Low x2 / Gar) -7/Garrison (discovered 3 exits: *Fac x3) -7/Factory (discovered 8 exits: *Fac x4 / Sto / *Low x2 / Gar) -7/Garrison (discovered 2 exits: *Fac x2) -7/Factory (discovered 6 exits: *Fac x2 / *Sto x2 / *Low x2) -6/Factory (discovered 4 exits: *Low x2 / *Ext x2) -6/Waste -6/Factory (discovered 8 exits: *Fac x4 / *Low x2 / *Ext x2) -6/Extension (discovered 2 exits: *Fac / *Cet) -6/Cetus (discovered 2 exits: *Fac / *Arc) -6/Archives -6/Hub_04(d) (discovered 2 exits: *Fac x2) -5/Factory (discovered 7 exits: *Fac x4 / *Upp x2 / Gar) -5/Waste -5/Factory (discovered 7 exits: *Fac x4 / *Upp x2 / Gar) -5/Garrison (discovered 3 exits: *Fac x3) -5/Factory (discovered 6 exits: *Fac x4 / *Upp x2) -5/Upper Caves -5/Upper Caves (discovered 2 exits: Fac / *Zhi) -5/Zhirov -4/Proximity Caves -4/Factory (discovered 4 exits: Res / *Upp x2 / Arm) -4/Upper Caves -4/Upper Caves (discovered 2 exits: Res / *War) -4/Warlord -3/Proximity Caves -3/Research (discovered 4 exits: *Res x2 / *Qua x2) -2/Research (discovered 3 exits: *Acc / *Tes x2) -1/Access (discovered 2 exits: *Sur / *Com) -1/Command (discovered 2 exits: Sur x2) History --------- Turn | Location | Event 5 | -11/Scrapyard | Discovered new exit (range 16) 80 | -11/Scrapyard | Entered Materials 171 | -10/Materials | Discovered new exit (range 6) 231 | -10/Materials | Discovered new exit (range 16) 314 | -10/Materials | Build established: Mutant 621 | -10/Materials | Discovered new exit (range 9) 784 | -10/Materials | Discovered new exit (range 16) 856 | -10/Materials | Repaired Lgt. Treads 1333 | -10/Materials | Discovered new exit (range 3) 1601 | -10/Materials | Discovered new exit (range 10) 1717 | -10/Materials | Entered Mines 1724 | -10/Mines | Assisted by bots powering up and referring to "LRC-V3" 1778 | -10/Mines | Joined a pair of Derelicts in attacking an 0b10 outpost 1840 | -10/Mines | Learned location of 1 exit from Materials 1843 | -10/Mines | Learned Materials terminal intel 2039 | -10/Mines | Assembled infested the area 2338 | -10/Mines | Discovered new exit (range 12) 2382 | -10/Mines | Deemed a non-threat by the Exiles lab entrance 2383 | -10/Mines | Discovered new exit (range 5) 2394 | -10/Mines | Entered Exiles 2394 | -10/Exiles | Accompanied by 2 allies 2438 | -10/Exiles | Met 8R-AWN 2466 | -10/Exiles | Met EX-HEX 2538 | -10/Exiles | Met EX-BIN 2559 | -10/Exiles | Aligned with FarCom system 2560 | -10/Exiles | Given EX-Vault access code 2599 | -10/Exiles | Opened EX-Vault 2609 | -10/Exiles | Found Gui. Plasma Cannon 2642 | -10/Exiles | Warned to stay clear of 0b10 Research branches 2688 | -10/Exiles | Met EX-DEC 2694 | -10/Exiles | Learned location of Zion (-7) 2822 | -10/Exiles | Discovered new exit (range 10) 2835 | -10/Exiles | Left Exiles lab with Gui. Plasma Cannon 2835 | -10/Exiles | Entered Mines 2835 | -9/Mines | Accompanied by 2 allies 2882 | -9/Mines | Discovered new exit (range 9) 3096 | -9/Mines | A weapon hastily lodged in a ceiling crevice suddenly fell to the ground 3204 | -9/Mines | Learned location of Storage (-7) 3224 | -9/Mines | Found a hidden stash of uninstalled traps 3243 | -9/Mines | Learned Materials stockpile data 3317 | -9/Mines | Learned location of 1 exit from Materials 3368 | -9/Mines | Discovered new exit (range 9) 3386 | -9/Mines | Entered Materials 3386 | -8/Materials | Accompanied by 2 allies 3386 | -8/Materials | Evolved 4 slots: Propulsion x1, Utility x3 3387 | -8/Materials | Identified exit to Factory 3389 | -8/Materials | Loaded intel: 12 terminal locations 4025 | -8/Materials | Repaired Imp. Treads 4058 | -8/Materials | Repaired Imp. Treads 4092 | -8/Materials | Repaired Imp. Treads 4155 | -8/Materials | Discovered exit to Factory (range 4) 4966 | -8/Materials | Repaired Hvy. Armor Plating 5021 | -8/Materials | Identified exit to Garrison 5245 | -8/Materials | Learned Factory emergency access door positions 5293 | -8/Materials | Learned Storage emergency access door positions 5300 | -8/Materials | Learned Factory recycling unit intel 5301 | -8/Materials | Learned 2 Storage zone layouts 5302 | -8/Materials | Learned location of Extension (-6) 5303 | -8/Materials | Learned Storage emergency access door positions 5304 | -8/Materials | Learned location of 2 exits from Lower Caves 5336 | -8/Materials | Learned location of 1 exit from Recycling 5909 | -8/Materials | Entered Garrison 5981 | -8/Garrison | Triggered checkpoint 5983 | -8/Garrison | Triggered checkpoint 6094 | -8/Garrison | Garrison Relay disabled 6185 | -8/Garrison | Triggered checkpoint 6191 | -8/Garrison | Triggered checkpoint 6255 | -8/Garrison | Destroyed 8 combat bots 6372 | -8/Garrison | Triggered checkpoint 6432 | -8/Garrison | Lost 5 allies 6491 | -8/Garrison | Discovered new exit (range 9) 6507 | -8/Garrison | Triggered checkpoint 6711 | -8/Garrison | Triggered checkpoint 6724 | -8/Garrison | Garrison Relay disabled 6765 | -8/Garrison | Discovered new exit (range 7) 6796 | -8/Garrison | Attempted to access garrison exit controls, blocked by remote lockdown 6843 | -8/Garrison | Phase Generator disabled 7006 | -8/Garrison | Discovered new exit (range 3) 7047 | -8/Garrison | Triggered checkpoint 7166 | -8/Garrison | Garrison Relay disabled 7254 | -8/Garrison | Attempted to access garrison exit controls, blocked by remote lockdown 7382 | -8/Garrison | Entered Materials 7782 | -8/Materials | First assault squad dispatched 7819 | -8/Materials | Discovered exit to Factory (range 4) 7893 | -8/Materials | Destroyed 7 combat bots 7903 | -8/Materials | Lost 4 parts (1p1n1u1w) 8234 | -8/Materials | Repaired Broken Hvy. Treads 8359 | -8/Materials | Discovered exit to Factory (range 10) 9460 | -8/Materials | Identified exit to Garrison 9461 | -8/Materials | Entered Garrison 9563 | -8/Garrison | Triggered checkpoint 9574 | -8/Garrison | Garrison Relay disabled 9669 | -8/Garrison | Triggered checkpoint 9747 | -8/Garrison | Garrison Relay disabled 9807 | -8/Garrison | Discovered new exit (range 10) 9883 | -8/Garrison | Garrison Relay disabled 10049 | -8/Garrison | Rescued a captive Derelict 10060 | -8/Garrison | Discovered new exit (range 10) 10060 | -8/Garrison | Rescued a captive Derelict 10195 | -8/Garrison | Garrison Relay disabled 10263 | -8/Garrison | Triggered checkpoint 10295 | -8/Garrison | Triggered checkpoint 10344 | -8/Garrison | Discovered new exit (range 15) 10369 | -8/Garrison | Triggered checkpoint 10380 | -8/Garrison | Discovered new exit (range 5) 10424 | -8/Garrison | Triggered checkpoint 10487 | -8/Garrison | Garrison Relay disabled 10511 | -8/Garrison | Garrison Relay disabled 10636 | -8/Garrison | Entered Materials 10989 | -8/Materials | Build established: Hacker-Mutant 11034 | -8/Materials | Discovered exit to Factory (range 16) 11480 | -8/Materials | Discovered exit to Factory (range 4) 11893 | -8/Materials | Destroyed 7 combat bots 12035 | -8/Materials | Identified exit to Garrison 12035 | -8/Materials | Entered Garrison 12110 | -8/Garrison | Triggered checkpoint 12146 | -8/Garrison | Destroyed 7 combat bots 12171 | -8/Garrison | Core integrity fell below 50% 12185 | -8/Garrison | Triggered checkpoint 12221 | -8/Garrison | Discovered new exit (range 74) 12221 | -8/Garrison | Discovered new exit (range 71) 12221 | -8/Garrison | Discovered new exit (range 44) 12238 | -8/Garrison | Garrison Relay disabled 12394 | -8/Garrison | Triggered checkpoint 12677 | -8/Garrison | Triggered checkpoint 12852 | -8/Garrison | Learned Materials security intel 12889 | -8/Garrison | Triggered checkpoint 12909 | -8/Garrison | Entered Materials 13141 | -8/Materials | Met 7R-MNS 13200 | -8/Materials | Discovered exit to Factory (range 10) 13214 | -8/Materials | Entered Factory 13214 | -7/Factory | Evolved 2 slots: Propulsion x1, Utility x1 13215 | -7/Factory | Caught up to 7R-MNS 13215 | -7/Factory | Identified exit to Lower Caves 13217 | -7/Factory | Loaded intel: 6 recycling unit locations 13514 | -7/Factory | Discovered new exit (range 5) 14096 | -7/Factory | Build established: Hacker-Skirmisher 14215 | -7/Factory | Fabricated Gravmag Array (x1) 14560 | -7/Factory | Build established: Hacker-Scout 14603 | -7/Factory | Discovered new exit (range 16) 14720 | -7/Factory | Repaired KE Penetrator? 14831 | -7/Factory | Fabricated Gravmag Array? 14961 | -7/Factory | Discovered new exit (range 15) 14990 | -7/Factory | Identified exit to Garrison 15006 | -7/Factory | Repaired Wave Gun 15075 | -7/Factory | Discovered new exit (range 16) 15335 | -7/Factory | Fabricated Linear Gravjet? 15443 | -7/Factory | Repaired Adv. EMP Blaster 15921 | -7/Factory | Fabricated Imp. Hacking Suite (x1) 16543 | -7/Factory | Learned Extension stockpile data 16564 | -7/Factory | Identified exit to Factory 16577 | -7/Factory | Learned 2 Lower Caves zone layouts 16581 | -7/Factory | Learned location of 1 exit from Lower Caves 16594 | -7/Factory | Learned Extension emergency access door positions 16692 | -7/Factory | Entered Garrison 16692 | -7/Garrison | Accompanied by 5 allies 16715 | -7/Garrison | Garrison Relay disabled 16796 | -7/Garrison | Triggered checkpoint 16804 | -7/Garrison | Triggered checkpoint 16878 | -7/Garrison | Discovered new exit (range 83) 16878 | -7/Garrison | Discovered new exit (range 67) 16878 | -7/Garrison | Discovered new exit (range 61) 17021 | -7/Garrison | Destroyed 9 combat bots 17074 | -7/Garrison | Triggered checkpoint 17106 | -7/Garrison | Build established: Hacker-Mutant 17206 | -7/Garrison | Rescued a captive Derelict 17256 | -7/Garrison | Triggered checkpoint 17263 | -7/Garrison | Triggered checkpoint 17392 | -7/Garrison | Garrison Relay disabled 17476 | -7/Garrison | Phase Generator disabled 17559 | -7/Garrison | Garrison Relay disabled 17906 | -7/Garrison | Entered Factory 17906 | -7/Factory | Accompanied by 4 allies 17925 | -7/Factory | Discovered exit to Factory (range 8) 18088 | -7/Factory | Fabricated Imp. Hacking Suite? 18198 | -7/Factory | Build established: Hacker-Scout 18509 | -7/Factory | Fabricated Mic. Fission Core? 19011 | -7/Factory | Fabricated Adv. System Shield (x1) 19163 | -7/Factory | Discovered exit to Factory (range 9) 19555 | -7/Factory | Build established: Hacker-Mutant 19580 | -7/Factory | Garrison activated, responded to threat 19666 | -7/Factory | Lost 4 parts (2p1u1w) 19672 | -7/Factory | Gui. Plasma Cannon suddenly broke down 19698 | -7/Factory | Core integrity fell below 50% 20281 | -7/Factory | Build established: Machinist-Scout 20360 | -7/Factory | Identified exit to Garrison 20410 | -7/Factory | Repaired Gravmag Array 20439 | -7/Factory | Repaired KE Penetrator 20457 | -7/Factory | Found Prototype Launcher 20457 | -7/Factory | Identified Rocket Array 21072 | -7/Factory | Discovered exit to Factory (range 13) 21123 | -7/Factory | P-70 Sage assimilated allied Technician 4c 21199 | -7/Factory | Learned Extension stockpile data 21238 | -7/Factory | Learned 2 Extension zone layouts 21248 | -7/Factory | Fabricated Gravmag Array? 21268 | -7/Factory | Identified exit to Storage 21284 | -7/Factory | Fabricated Adv. System Restoration Module? 21354 | -7/Factory | Learned location of 1 exit from Proximity Caves 21467 | -7/Factory | Discovered exit to Lower Caves (range 15) 21582 | -7/Factory | Repaired Gravmag Array? 21639 | -7/Factory | Repaired Gravmag Array? 21940 | -7/Factory | Build established: Hacker-Scout 22019 | -7/Factory | Entered Garrison 22019 | -7/Garrison | Accompanied by 1 ally 22142 | -7/Garrison | Spotted B-75 Beast 22226 | -7/Garrison | Gui. Plasma Cannon suddenly broke down 22339 | -7/Garrison | Triggered checkpoint 22345 | -7/Garrison | Triggered checkpoint 22380 | -7/Garrison | Triggered checkpoint 22508 | -7/Garrison | Triggered checkpoint 22527 | -7/Garrison | Garrison Relay disabled 22578 | -7/Garrison | Build established: Machinist-Mutant 22709 | -7/Garrison | Discovered new exit (range 5) 22765 | -7/Garrison | Triggered checkpoint 22807 | -7/Garrison | Gui. Plasma Cannon suddenly broke down 23129 | -7/Garrison | Discovered new exit (range 10) 23140 | -7/Garrison | Found embedded Infiltrators 23151 | -7/Garrison | Triggered checkpoint 23187 | -7/Garrison | Garrison Relay disabled 23217 | -7/Garrison | Entered Factory 23217 | -7/Factory | Accompanied by 3 allies 23355 | -7/Factory | Core integrity fell below 20% 23438 | -7/Factory | Discovered exit to Storage (range 5) 23671 | -7/Factory | Discovered exit to Factory (range 12) 23819 | -7/Factory | Fabricated Adv. System Shield? 23871 | -7/Factory | Discovered exit to Factory (range 7) 24006 | -7/Factory | Repaired Mic. Fission Core 24375 | -7/Factory | Fabricated Adv. System Shield? 24474 | -7/Factory | Repaired Gravmag Array 24531 | -7/Factory | Repaired KE Penetrator 24607 | -7/Factory | Repaired Variable Charge Gun 24817 | -7/Factory | Search patrols dispatched 25101 | -7/Factory | Entered another Factory area 25101 | -6/Factory | Evolved 2 slots: Propulsion x1, Utility x1 25223 | -6/Factory | Repaired Gravmag Array 25410 | -6/Factory | Build established: Hacker-Mutant 25463 | -6/Factory | Discovered new exit (range 10) 25663 | -6/Factory | Discovered new exit (range 10) 25698 | -6/Factory | Repaired Dispersion Rifle 25716 | -6/Factory | Repaired Gravmag Array 25732 | -6/Factory | Identified exit to Lower Caves 25732 | -6/Factory | Identified exit to Extension 25758 | -6/Factory | Cargo convoy interrupted 25878 | -6/Factory | Fabricated Mic. Fission Core (x2) 26018 | -6/Factory | Fabricated Adv. System Restoration Module (x2) 26032 | -6/Factory | Sucked down chute 26032 | -6/Factory | Entered Waste 26045 | -6/Waste | Spotted C-40 Crusher 26047 | -6/Waste | EMP discharged 26047 | -6/Waste | System corruption reached 10% 26047 | -6/Waste | Destroyed C-40 Crusher 26057 | -6/Waste | Spotted C-40 Crusher 26067 | -6/Waste | Spotted C-40 Crusher 26076 | -6/Waste | Spotted C-40 Crusher 26076 | -6/Waste | Spotted C-40 Crusher 26090 | -6/Waste | Spotted C-40 Crusher 26102 | -6/Waste | Destroyed C-40 Crusher 26124 | -6/Waste | Discovered new exit (range 11) 26138 | -6/Waste | Entered Factory 26150 | -6/Factory | Discovered exit to Lower Caves (range 11) 26419 | -6/Factory | Discovered exit to Extension (range 17) 26439 | -6/Factory | Discovered new exit (range 16) 26643 | -6/Factory | Discovered exit to Lower Caves (range 15) 26648 | -6/Factory | Build established: Hacker-Scout 26891 | -6/Factory | Learned 2 Lower Caves zone layouts 26949 | -6/Factory | Learned location of 1 exit from Upper Caves 27058 | -6/Factory | Learned 2 Proximity Caves zone layouts 27096 | -6/Factory | Learned location of 1 exit from Upper Caves 27115 | -6/Factory | Repaired Lrn. Terrain Scanner 27131 | -6/Factory | Identified exit to Factory 27178 | -6/Factory | Learned location of 1 exit from Extension 27567 | -6/Factory | Fabricated Adv. Shield Generator? 27597 | -6/Factory | Discovered exit to Extension (range 15) 28132 | -6/Factory | Build established: Hacker-Mutant 28268 | -6/Factory | Fabricated Adv. Hacking Suite? 28555 | -6/Factory | Build established: Hacker-Scout 28726 | -6/Factory | Discovered exit to Factory (range 22) 29179 | -6/Factory | Repaired Cld. Plasma Cannon 29215 | -6/Factory | Repaired Broken Gravmag Array 29361 | -6/Factory | Fabricated Adv. System Restoration Module (x2) 29393 | -6/Factory | Fabricated Gui. EMP Blaster (x1) 29554 | -6/Factory | Entered Extension 29555 | -6/Extension | Identified exit to Cetus 29560 | -6/Extension | Disrupted transfer network 29903 | -6/Extension | Rescued a captive Derelict 29928 | -6/Extension | Rescued a captive Derelict 29934 | -6/Extension | Rescued a captive Derelict 29936 | -6/Extension | Rescued a captive Derelict 29942 | -6/Extension | Rescued a captive Derelict 29945 | -6/Extension | Rescued a captive Derelict 30012 | -6/Extension | Rescued a captive Derelict 30145 | -6/Extension | Build established: Hacker-Mutant 30399 | -6/Extension | Crushed by falling debris 30714 | -6/Extension | Rescued a captive Derelict 30998 | -6/Extension | Rescued a captive Derelict 30999 | -6/Extension | Rescued a captive Derelict 31046 | -6/Extension | Rescued a captive Derelict 31230 | -6/Extension | Discovered exit to Factory (range 10) 31261 | -6/Extension | Build established: Commander-Mutant 31552 | -6/Extension | Rescued A7 32077 | -6/Extension | Entered Cetus 32077 | -6/Cetus | Accompanied by 11 allies (A7) 32082 | -6/Cetus | Acquired a Cetus Manufacturing Module code from A7 32098 | -6/Cetus | Spotted Cetus Guard 32098 | -6/Cetus | Spotted Cetus Guard 32100 | -6/Cetus | Spotted Cetus Guard 32100 | -6/Cetus | Spotted Cetus Guard 32106 | -6/Cetus | Allies destroyed Cetus Guard 32108 | -6/Cetus | Destroyed Cetus Guard 32110 | -6/Cetus | Destroyed Cetus Guard 32112 | -6/Cetus | Allies destroyed Cetus Guard 32208 | -6/Cetus | Started Cetus Manufacturing Module 32233 | -6/Cetus | Manufactured an Enhanced Grunt 32258 | -6/Cetus | Manufactured an Enhanced Grunt 32283 | -6/Cetus | Manufactured an Enhanced Grunt 32308 | -6/Cetus | Manufactured an Enhanced Grunt 32333 | -6/Cetus | Manufactured an Enhanced Grunt 32361 | -6/Cetus | Escorted A7 to Cetus Mainframe 32381 | -6/Cetus | Discovered new exit (range 15) 32401 | -6/Cetus | Spotted Cetus Guard 32401 | -6/Cetus | Spotted Cetus Guard 32403 | -6/Cetus | Spotted Cetus Guard 32404 | -6/Cetus | Spotted Cetus Guard 32410 | -6/Cetus | Destroyed Cetus Guard 32412 | -6/Cetus | Destroyed Cetus Guard 32413 | -6/Cetus | Allies destroyed Cetus Guard 32414 | -6/Cetus | Destroyed Cetus Guard 32421 | -6/Cetus | Discovered exit to Factory (range 15) 32427 | -6/Cetus | Met Revision 17 32441 | -6/Cetus | Lost 3 allies 32495 | -6/Cetus | Entered Archives 32495 | -6/Archives | Accompanied by 13 allies (A7) 32500 | -6/Archives | Received a hacking code to weaken MAIN.C 32534 | -6/Archives | Met Zhirov 32540 | -6/Archives | Reinforcements dispatched to Archives 32547 | -6/Archives | Read partially decrypted archive contents 32551 | -6/Archives | Discovered new exit (range 16) 32585 | -6/Archives | Reinforcements dispatched to Archives 32599 | -6/Archives | Entered Hub_04(d) 32599 | -6/Hub_04(d) | Accompanied by 7 allies 32689 | -6/Hub_04(d) | Found Prototype Device 32689 | -6/Hub_04(d) | Identified Exp. Thermal Shield 32794 | -6/Hub_04(d) | Discovered exit to Factory (range 16) 32968 | -6/Hub_04(d) | Build established: Hacker-Scout 33016 | -6/Hub_04(d) | Core integrity fell below 50% 33055 | -6/Hub_04(d) | Discovered exit to Factory (range 14) 33066 | -6/Hub_04(d) | Disrupted transfer network 33076 | -6/Hub_04(d) | Network Hub disabled 33113 | -6/Hub_04(d) | Network Hub disabled 33113 | -6/Hub_04(d) | Network Hub disabled 33140 | -6/Hub_04(d) | Entered Factory 33140 | -5/Factory | Evolved 2 slots: Utility x2 33141 | -5/Factory | Identified exit to Upper Caves 33197 | -5/Factory | Repaired Gravmag Array? 33295 | -5/Factory | Repaired Cld. Plasma Cannon? 33409 | -5/Factory | Repaired Cld. Plasma Cannon? 33428 | -5/Factory | Repaired Neutron Cannon? 33431 | -5/Factory | Discovered new exit (range 16) 33713 | -5/Factory | Fabricated Mic. Antimatter Reactor? 34016 | -5/Factory | Central database locked down 34137 | -5/Factory | Repaired Centrium Medium Armor Plating 34188 | -5/Factory | Repaired Adv. Heat Sink 34298 | -5/Factory | Repaired Centrium Medium Armor Plating 34355 | -5/Factory | Repaired Phasing Sabre 34434 | -5/Factory | Learned Research stockpile data 34492 | -5/Factory | Learned location of 2 exits from Proximity Caves 34503 | -5/Factory | Learned location of Warlord (-4) 34505 | -5/Factory | Learned Armory repair station intel 34805 | -5/Factory | Fabricated HERF Cannon? 34824 | -5/Factory | Identified exit to Garrison 34866 | -5/Factory | Fabricated Quantum Reactor? 35041 | -5/Factory | Repaired Linear Gravjet 35237 | -5/Factory | Fabricated Adv. System Restoration Module? 35382 | -5/Factory | Discovered new exit (range 3) 35881 | -5/Factory | Repaired Gravmag Array 35922 | -5/Factory | Repaired Cld. Plasma Cannon? 35935 | -5/Factory | Build established: Hacker-Mutant 36400 | -5/Factory | Fabricated Centrium Heavy Treads? 36955 | -5/Factory | Identified exit to Factory 36955 | -5/Factory | Learned location of 1 exit from Factory 36968 | -5/Factory | Fabricated Adv. Energy Well? 37029 | -5/Factory | Learned 2 Upper Caves zone layouts 37048 | -5/Factory | Learned Extension emergency access door positions 37055 | -5/Factory | Learned Quarantine scanalyzer intel 37056 | -5/Factory | Learned Armory emergency access door positions 37057 | -5/Factory | Loaded intel: 77 trap records 37058 | -5/Factory | Learned Factory trap positions 37068 | -5/Factory | Learned location of Quarantine (-3) 37090 | -5/Factory | Learned location of 2 exits from Factory 37124 | -5/Factory | Learned Armory emergency access door positions 37640 | -5/Factory | First assault squad dispatched 37785 | -5/Factory | Lost 3 parts (2u1w) 37789 | -5/Factory | Destroyed 9 combat bots 37934 | -5/Factory | System corruption reached 10% 37964 | -5/Factory | Lost 3 parts (1n1u1w) 37966 | -5/Factory | Destroyed 7 combat bots 38376 | -5/Factory | Sucked down chute 38376 | -5/Factory | Entered Waste 38391 | -5/Waste | EMP discharged 38400 | -5/Waste | Spotted C-40 Crusher 38402 | -5/Waste | Spotted C-40 Crusher 38402 | -5/Waste | Spotted C-40 Crusher 38406 | -5/Waste | Spotted C-40 Crusher 38412 | -5/Waste | Spotted C-40 Crusher 38419 | -5/Waste | Spotted C-40 Crusher 38435 | -5/Waste | Discovered new exit (range 13) 38451 | -5/Waste | Entered Factory 38454 | -5/Factory | Loaded intel: 73 trap records 38553 | -5/Factory | Fabricated Imp. Terrain Scanner (x2) 38727 | -5/Factory | Fabricated Centrium Medium Armor Plating? 38795 | -5/Factory | Repaired Broken Nova Cannon? 39162 | -5/Factory | Build established: Hacker-Scout 39199 | -5/Factory | Fabricated Adv. Hacking Suite (x1) 39345 | -5/Factory | Learned Quarantine emergency access door positions 39432 | -5/Factory | Learned Extension security intel 39458 | -5/Factory | Learned Testing security intel 39473 | -5/Factory | Learned Armory terminal intel 39481 | -5/Factory | Learned Extension garrison access intel 39490 | -5/Factory | Learned location of 2 exits from Research 39508 | -5/Factory | Learned location of Testing (-2) 39563 | -5/Factory | Repaired Centrium Heavy Treads? 39612 | -5/Factory | Repaired Broken Hyp. Mass Driver 39648 | -5/Factory | Central database locked down 39898 | -5/Factory | Identified exit to Garrison 40113 | -5/Factory | Learned Quarantine stockpile data 40161 | -5/Factory | Learned location of Proximity Caves (-3) 40229 | -5/Factory | Learned Extension security intel 40247 | -5/Factory | Learned 2 Armory zone layouts 40276 | -5/Factory | Learned Testing stockpile data 40719 | -5/Factory | Repaired Cld. Plasma Cannon? 40896 | -5/Factory | Fabricated Adv. Energy Well? 41116 | -5/Factory | Fabricated Centrium Heavy Treads? 41196 | -5/Factory | Repaired Imp. Terrain Scanner? 41454 | -5/Factory | Build established: Hacker-Mutant 42109 | -5/Factory | Repaired Gravmag Array 42298 | -5/Factory | Repaired Centrium Medium Armor Plating 42579 | -5/Factory | Entered Garrison 42579 | -5/Garrison | Warlord forces raided the area 42579 | -5/Garrison | Accompanied by 1 ally 42580 | -5/Garrison | Identified exit to Factory 42608 | -5/Garrison | Triggered checkpoint 42615 | -5/Garrison | Lost 3 allies 42624 | -5/Garrison | Garrison Relay disabled 42721 | -5/Garrison | Spotted B-90 Cyclops 42729 | -5/Garrison | Spotted B-86 Titan 42742 | -5/Garrison | Destroyed B-86 Titan 42777 | -5/Garrison | Rewired B-75 Beast 42779 | -5/Garrison | Lost 7 allies 42843 | -5/Garrison | Triggered checkpoint 42867 | -5/Garrison | Triggered checkpoint 42930 | -5/Garrison | Warlord forces retreated 42942 | -5/Garrison | Triggered checkpoint 42957 | -5/Garrison | Triggered checkpoint 43049 | -5/Garrison | Triggered checkpoint 43150 | -5/Garrison | Phase Generator disabled 43156 | -5/Garrison | Garrison Relay disabled 43175 | -5/Garrison | Garrison Relay disabled 43208 | -5/Garrison | H-XX Assembler disabled 43232 | -5/Garrison | Found Prototype Device 43232 | -5/Garrison | Identified Active Sensor Suite 43479 | -5/Garrison | Garrison Relay disabled 43619 | -5/Garrison | Triggered checkpoint 43637 | -5/Garrison | Garrison Relay disabled 43763 | -5/Garrison | Entered Factory 43827 | -5/Factory | Repaired Nova Cannon 43937 | -5/Factory | Repaired Cld. Plasma Cannon 44337 | -5/Factory | Repaired Linear Gravjet 44461 | -5/Factory | Core integrity fell below 50% 44660 | -5/Factory | Learned Testing trap positions 44686 | -5/Factory | Fabricated Mic. Antimatter Reactor (x2) 44699 | -5/Factory | Discovered exit to Factory (range 13) 44802 | -5/Factory | Learned Research terminal intel 44939 | -5/Factory | Fabricated Exp. Energy Well? 44945 | -5/Factory | Learned Extension terminal intel 44975 | -5/Factory | Learned 4 Research zone layouts 45061 | -5/Factory | Learned 4 Proximity Caves zone layouts 45116 | -5/Factory | Learned Armory fabricator intel 45595 | -5/Factory | Fabricated Lrn. Sensor Array? 45624 | -5/Factory | Repaired Broken Adv. Cooling System 46041 | -5/Factory | Repaired Adv. Shield Generator 46086 | -5/Factory | Discovered exit to Upper Caves (range 4) 46091 | -5/Factory | Discovered exit to Upper Caves (range 3) 46419 | -5/Factory | Build established: Hacker-Scout 46463 | -5/Factory | First assault squad dispatched 46601 | -5/Factory | Spotted B-75 Beast 46930 | -5/Factory | Repaired Gravmag Array 47011 | -5/Factory | Repaired Cld. Plasma Cannon 47128 | -5/Factory | Repaired Centrium Medium Armor Plating 47273 | -5/Factory | Found Quantum Capacitor 47360 | -5/Factory | Entered Upper Caves 47361 | -5/Upper Caves | Identified exit to Upper Caves 47368 | -5/Upper Caves | Met a Warlord Commander 47370 | -5/Upper Caves | Warlord Commander delivered Encrypted Comm Array 47415 | -5/Upper Caves | Encountered a Warlord checkpoint 47507 | -5/Upper Caves | Build established: Hacker-Mutant 47668 | -5/Upper Caves | Learned Factory emergency access door positions 47878 | -5/Upper Caves | Entered another Upper Caves area 47879 | -5/Upper Caves | Encountered a Warlord checkpoint 47880 | -5/Upper Caves | Identified exit to Zhirov 47945 | -5/Upper Caves | Attracted the attention of an 0b10 checkpoint 48475 | -5/Upper Caves | Entered Zhirov 48475 | -5/Zhirov | Discovered new exit (range 3) 48495 | -5/Zhirov | Learned location of Command (-1) 48505 | -5/Zhirov | Found Alien Artifact 48505 | -5/Zhirov | Identified Integrated Reactor 48505 | -5/Zhirov | Installed Integrated Reactor, increased core energy generation (+10) 48561 | -5/Zhirov | Identified exit to Proximity Caves 48561 | -5/Zhirov | Entered Proximity Caves 48563 | -4/Proximity Caves | Spotter reported a threat 48646 | -4/Proximity Caves | Learned Research terminal intel 48646 | -4/Proximity Caves | Learned Armory terminal intel 48647 | -4/Proximity Caves | Attracted the attention of an 0b10 base 48783 | -4/Proximity Caves | Learned Research garrison access intel 49079 | -4/Proximity Caves | Entered Factory 49079 | -4/Factory | Evolved 2 slots: Power x1, Propulsion x1 49080 | -4/Factory | Identified exit to Research 49080 | -4/Factory | Identified exit to Upper Caves 49118 | -4/Factory | Repaired Nova Cannon 49349 | -4/Factory | Fabricated Imp. Linear Gravjet? 49551 | -4/Factory | Repaired Gravmag System 49571 | -4/Factory | Repaired Lrg. Storage Unit 49619 | -4/Factory | Repaired Mic. Fission Core 50105 | -4/Factory | Repaired Lrn. Sensor Array 50160 | -4/Factory | Repaired Centrium Medium Armor Plating 51031 | -4/Factory | Fabricated Lrn. Terrain Scanner? 51099 | -4/Factory | Learned Armory garrison access intel 51164 | -4/Factory | Learned 4 Upper Caves zone layouts 51264 | -4/Factory | Learned location of 2 exits from Upper Caves 51299 | -4/Factory | Learned location of 2 exits from Upper Caves 51363 | -4/Factory | Learned Research trap positions 51409 | -4/Factory | Learned Testing security intel 51453 | -4/Factory | Found Prototype Hackware 51453 | -4/Factory | Identified Exp. System Shield 51467 | -4/Factory | Learned location of 1 exit from Testing 51499 | -4/Factory | Identified exit to Armory 51535 | -4/Factory | Learned Research stockpile data 51574 | -4/Factory | Build established: Hacker-Scout 51693 | -4/Factory | Lost 3 allies 51727 | -4/Factory | Found Prototype Processor 51727 | -4/Factory | Identified Exp. Signal Interpreter 51803 | -4/Factory | Entered Upper Caves 51804 | -4/Upper Caves | Identified exit to Upper Caves 52304 | -4/Upper Caves | Entered another Upper Caves area 52305 | -4/Upper Caves | Identified exit to Warlord 52428 | -4/Upper Caves | Encountered a Warlord checkpoint 52440 | -4/Upper Caves | Entered Warlord 52452 | -4/Warlord | Discovered new exit (range 12) 52652 | -4/Warlord | Met Warlord 52657 | -4/Warlord | Warlord's base attacked by MAIN.C 52684 | -4/Warlord | Found Prototype Processor 52686 | -4/Warlord | Found Prototype Processor 52687 | -4/Warlord | Found Prototype Device 52687 | -4/Warlord | Identified Exp. Focal Shield 52756 | -4/Warlord | Found Prototype Energy Gun 52756 | -4/Warlord | Identified Vortex Rail 52758 | -4/Warlord | Found Prototype Energy Cannon 52758 | -4/Warlord | Identified Vortex Cannon 52886 | -4/Warlord | Warlord forces counterattacked 52923 | -4/Warlord | Lost 3 allies 52950 | -4/Warlord | Identified exit to Proximity Caves 52950 | -4/Warlord | Entered Proximity Caves 53513 | -3/Proximity Caves | Snuck into a huge 0b10 base via the rear entrance 53951 | -3/Proximity Caves | Entered Research 53951 | -3/Research | Evolved 2 slots: Utility x2 53952 | -3/Research | Identified exit to Quarantine 53952 | -3/Research | Identified exit to Research 53954 | -3/Research | Loaded intel: 91 trap records 53956 | -3/Research | Loaded intel: 24 terminal locations 53957 | -3/Research | Loaded intel: 3 garrison access locations 54112 | -3/Research | Repaired Centrium Medium Armor Plating 54151 | -3/Research | Revision forces began assault on 0b10 54400 | -3/Research | Discovered exit to Research (range 24) 54434 | -3/Research | Met up with Revision 17++ 54434 | -3/Research | Found Prototype Device 54434 | -3/Research | Identified Exp. Thermal Defense Suite 54445 | -3/Research | Identified Exp. Targeting Computer 54445 | -3/Research | Identified Exp. Armor Integrity Analyzer 54629 | -3/Research | Fabricated Enh. Nova Cannon? 54651 | -3/Research | Research terminal network offline 54655 | -3/Research | Fabricated Com. HERF Cannon (x1) 54667 | -3/Research | Repaired Cld. Plasma Cannon? 54743 | -3/Research | Lost 7 allies 54817 | -3/Research | Fabricated Exp. System Shield? 54902 | -3/Research | Fabricated Adv. Hacking Suite? 54974 | -3/Research | Build established: Hacker-Mutant 55245 | -3/Research | Found Fusion Bomb Launcher 55291 | -3/Research | Entered another Research area 55291 | -2/Research | Accompanied by 2 allies 55291 | -2/Research | Warlord forces began assault on 0b10 55291 | -2/Research | Evolved 2 slots: Propulsion x1, Utility x1 55292 | -2/Research | Identified exit to Testing 55294 | -2/Research | Loaded intel: 22 terminal locations 55310 | -2/Research | Found Faulty Exp. Core Analyzer 55315 | -2/Research | Met up with Warlord 55316 | -2/Research | Distinguished unit "Bridgeowners Association" dispatched to help 55316 | -2/Research | Distinguished unit "Lobotomizers" dispatched to help 55401 | -2/Research | Research machine network offline 55461 | -2/Research | Spotted B-90 Cyclops 55476 | -2/Research | Destroyed B-90 Cyclops 55714 | -2/Research | Spotted Striker 55829 | -2/Research | Discovered new exit (range 6) 55841 | -2/Research | Spotted Striker 55841 | -2/Research | Spotted Executioner 55841 | -2/Research | Spotted Striker 56090 | -2/Research | Spotted B-90 Cyclops 56131 | -2/Research | Destroyed B-90 Cyclops 56196 | -2/Research | Found Quantum Capacitor 56219 | -2/Research | Discovered exit to Testing (range 7) 56239 | -2/Research | Borebot progress halted 56293 | -2/Research | Warlord invited to help at Command 56299 | -2/Research | Identified exit to Access 56375 | -2/Research | Entered Access 56375 | -1/Access | Evolved 2 slots: Power x1, Utility x1 56481 | -1/Access | Lost 3 allies 56568 | -1/Access | Garrison activated, responded to threat 56698 | -1/Access | Identified exit to Command 56955 | -1/Access | Found Gamma Bomb Array 56982 | -1/Access | Discovered new exit (range 6) 57613 | -1/Access | Repaired Centrium Medium Armor Plating 57676 | -1/Access | Repaired Cld. Antigrav System 57715 | -1/Access | Repaired Cld. Antigrav System 57898 | -1/Access | Spotted B-99 Colossus 57988 | -1/Access | Lost 3 parts (1p1n1u) 58042 | -1/Access | Fabricated Exp. Core Analyzer (x1) 58538 | -1/Access | Build established: Wizard-Mutant 58693 | -1/Access | Found Prototype Reactor 58693 | -1/Access | Identified Vortex Chain Reactor 58695 | -1/Access | Destroyed 9 combat bots 58792 | -1/Access | Garrison activated, responded to threat 58875 | -1/Access | First assault squad dispatched 58935 | -1/Access | Spotted B-99 Colossus 59033 | -1/Access | Entered Command 59034 | -1/Command | Identified exit to Surface 59051 | -1/Command | Spotted B-99 Colossus 59074 | -1/Command | Build established: Hacker-Mutant 59311 | -1/Command | First assault squad dispatched 59311 | -1/Command | System corruption reached 10% 59412 | -1/Command | Lost 3 parts (2u1w) 59561 | -1/Command | Core integrity fell below 50% 59566 | -1/Command | Spotted M Guard 59567 | -1/Command | Spotted M Guard 59567 | -1/Command | Spotted Combat Programmer 59568 | -1/Command | Spotted Combat Programmer 59572 | -1/Command | Core integrity fell below 20% 59575 | -1/Command | Destroyed by M Guard with Hellfire Missile Launcher Last Messages --------------- 59552_ Adv. Variable Charge Gun destroyed. 59554_ Antigrav System destroyed. 59556_ Imp. Antigrav System destroyed. 59558_ Recycling Unit disabled. 59558_ Q-thruster tumbles out of recycling unit. 59558_ Antigrav Array destroyed. 59560_ S-43 Plague destroyed. 59563_ System corrupted: Component data lost. 59566_ Exp. Targeting Computer destroyed. 59567_ Graphene Brace destroyed. 59567_ Penetrated by EMDS Slug. 59570_ EMDS Slug penetrates Wall. 59570_ EMDS Slug penetrates Earth. 59571_ The unstable cave ceiling collapses. 59572_ EMDS Slug penetrates Warlord KY-Z71. 59572_ Penetrated by EMDS Slug. 59573_ Knocked back. 59574_ EMDS Slug penetrates Reinforced Barrier. 59574_ Door malfunctions. [Achievement: 50k Club] Map ----- +----------------------------------------------------+ | ?????????????????????????????????????????????????? | | ?????????????????????????????????????????????????? | | ?????????????????????????????????????????????????? | | ?????????????????????????????????????????????????? | | ?????????????????????????????????????????????????? | | ?????????????????????????????????????????????????? | | ?????????????????????????????????????????????????? | | ?????????????????????????????????????????????????? | | ????????????????????????????? ?????????????????? | | ????????????????????????????? #????????????????? | | ????????????????????????????? #????????????????? | | ????????????????????????????# #????????????????? | | ????????????????????????????# #????????????????? | | ????????????????????????????# #????????????????? | | ????????????????????????????# #????????????????? | | ????????????????????????????# #????????????????? | | ????????????????????????????# #????????????????? | | ????????????????????????????# #????????????????? | | ??????????????????????????### ###??????????????? | | ?????????????????????????## # #??????##??????? | | ?????????????????????????# ###### #??????? | | ?????????????????????????# # ##??????? | | ?????????????????????#""??# ###?#### | | ?????????????????????# ?# # #?# | | ?????????????????????#///## W W ### | | ?????????????????????# @ sss | | ?????????????????????# Y s | | ?????????????????????# | | ?????????????????????# Y p | | ?????????????????????# p | | ?????????????????????# ### ### W ### ### | | ?????????????????????######?# #?# #?# #?# | | ????????????????????????????#####?#####?#####?#### | | ?????????????????????????????????????????????????? | | ?????????????????????????????????????????????????? | | ?????????????????????????????????????????????????? | | ?????????????????????????????????????????????????? | | ?????????????????????????????????????????????????? | | ?????????????????????????????????????????????????? | | ?????????????????????????????????????????????????? | | ?????????????????????????????????????????????????? | | ?????????????????????????????????????????????????? | | ?????????????????????????????????????????????????? | | ?????????????????????????????????????????????????? | | ?????????????????????????????????????????????????? | | ?????????????????????????????????????????????????? | | ?????????????????????????????????????????????????? | | ?????????????????????????????????????????????????? | | ?????????????????????????????????????????????????# | | ????????????????????????????????????????????????## | +----------------------------------------------------+ Best States ------------- Heat Dissipation 170 Coolant Potential 100 Energy Generation 106 Energy Capacity 950 Matter Stores 300 Matter Capacity 300 Sight Range 16 Robot Scan Range 18 Terrain Scan Range 24 Terrain Scan Density 210 Jamming Range 16 Cloak Strength 2 Power Amplification 30 Armor Coverage 1200 Resistance: KI 30 Resistance: TH 30 Weapon Shielding 33 Melee Speed Boost 30 Phase Shifting 15 Evasion (%) 70 Targeting Accuracy 16 Target Analysis 9 Core Analysis 8 Armor Integrity Analysis 50 Recoil Reduction 5 Matter Filtering 50 Energy Filtering 30 Particle Charging 25 Salvage Targeting 3 Offensive Hacking 56 Defensive Hacking 30 Trap Extractor Capacity 6 Item Schematics ----------------- Imp. Dynamic Insulation System | -8/Materials | Scanalyzed Gravmag Array | -7/Factory | Hacked Wave Gun | -7/Factory | Scanalyzed Adv. System Restoration Module | -7/Factory | Scanalyzed Mic. Fission Core | -7/Factory | Scanalyzed KE Penetrator | -7/Factory | Scanalyzed Adv. Shield Generator | -7/Factory | Scanalyzed Adv. Targeting Computer | -7/Factory | Scanalyzed Variable Charge Gun | -7/Factory | Scanalyzed Imp. Recalibrator | -7/Factory | Scanalyzed Imp. Kinecellerator | -7/Factory | Scanalyzed Adv. Treads | -7/Factory | Scanalyzed Imp. Terrain Scanner | -7/Factory | Hacked Adv. Terrain Scan Processor | -7/Factory | Hacked Linear Gravjet | -7/Factory | Hacked Imp. Hacking Suite | -7/Factory | Hacked Powered Hammer | -7/Factory | Hacked Impact Mace | -7/Factory | Scanalyzed Imp. Sensor Array | -7/Factory | Hacked Imp. Signal Interpreter | -7/Factory | Hacked Hvy. Linear Accelerator | -7/Factory | Scanalyzed Adv. System Shield | -7/Factory | Scanalyzed Imp. Trap Extractor | -7/Factory | Scanalyzed Hvy. Treads | -7/Factory | Scanalyzed Energy Filter | -7/Factory | Hacked Adv. Signal Interpreter | -7/Factory | Hacked Lrn. Sensor Array | -7/Factory | Scanalyzed Dispersion Rifle | -7/Factory | Scanalyzed Shock Bomb Launcher | -7/Factory | Extracted Particle Charger | -7/Factory | Extracted Adv. Target Analyzer | -6/Factory | Hacked Proton Missile Launcher | -6/Factory | Scanalyzed Adv. Hacking Suite | -6/Factory | Hacked Gui. EMP Blaster | -6/Factory | Scanalyzed Energy Well | -6/Factory | Scanalyzed HERF Cannon | -6/Extension | Hacked Mic. Antimatter Reactor | -5/Factory | Hacked Centrium Medium Armor Plating | -5/Factory | Scanalyzed Adv. Energy Well | -5/Factory | Scanalyzed Imp. Lightning Gun | -5/Factory | Scanalyzed Centrium Heavy Treads | -5/Factory | Scanalyzed Phasing Sabre | -5/Factory | Scanalyzed Adv. Variable Charge Gun | -5/Factory | Scanalyzed Antigrav System | -5/Factory | Hacked Adv. Plasma Cannon | -5/Factory | Scanalyzed Remote Force Field | -5/Factory | Extracted Insulated Plating | -5/Factory | Extracted Weapon Cycler | -5/Factory | Extracted Adv. Recalibrator | -5/Factory | Hacked Adv. Reaction Control System | -5/Factory | Hacked Imp. Heavy Siege Treads | -5/Factory | Hacked Hyp. Mass Driver | -5/Factory | Scanalyzed Nova Cannon | -5/Factory | Scanalyzed Coil Gun | -5/Factory | Extracted Micro-nuke Launcher | -5/Factory | Hacked Prc. Matter Filter | -5/Factory | Scanalyzed Quantum Reactor | -5/Factory | Scanalyzed Quantum Capacitor | -5/Factory | Hacked Lrn. Terrain Scanner | -5/Factory | Hacked Hardcell Cannon | -5/Factory | Hacked Adv. Particle Charger | -5/Factory | Hacked Enh. Gauss Cannon | -5/Factory | Scanalyzed Graphene Brace | -5/Factory | Scanalyzed Adv. Cooling System | -5/Factory | Scanalyzed Imp. Particle Charger | -5/Factory | Scanalyzed Adv. Sensor Array | -5/Factory | Scanalyzed Hcp. Storage Unit | -5/Factory | Scanalyzed Exp. Energy Well | -5/Factory | Hacked Imp. Linear Gravjet | -5/Factory | Hacked Adv. Focal Shield | -5/Factory | Hacked Adv. Heavy Treads | -5/Factory | Hacked Assault Drone Bay | -5/Zhirov | Free Exp. Heat Sink | -5/Zhirov | Free Exp. Optical Array | -5/Zhirov | Free Imp. Arc Thrower | -5/Zhirov | Free Cld. Plasma Cannon | -4/Factory | Scanalyzed Imp. Proton Missile Launcher | -4/Factory | Scanalyzed Hvy. Siege Treads | -4/Factory | Hacked Biometal Heavy Treads | -4/Factory | Hacked Enh. Quantum Rifle | -4/Factory | Hacked Imp. System Guard | -4/Factory | Hacked Tactical Quantum Warhead | -4/Factory | Hacked Adv. Powered Armor | -4/Factory | Hacked Imp. Force Field | -4/Factory | Hacked Com. HERF Cannon | -3/Research | Hacked Enh. Nova Cannon | -3/Research | Hacked Exp. Targeting Computer | -3/Research | Scanalyzed Exp. Armor Integrity Analyzer | -3/Research | Scanalyzed Reaction Control System | -3/Research | Extracted Imp. Matter Compressor | -3/Research | Extracted Biometal Medium Treads | -3/Research | Extracted Fusion Compressor | -3/Research | Extracted Imp. Heavy Treads | -3/Research | Extracted Lance | -3/Research | Extracted Exp. System Shield | -3/Research | Hacked Antigrav Array | -3/Research | Scanalyzed Exp. Thermal Defense Suite | -3/Research | Scanalyzed Adv. Transmission Jammer | -3/Research | Extracted Core Analyzer | -3/Research | Extracted Stealth Drone Bay | -3/Research | Extracted Nuclear Pulse Array | -3/Research | Extracted Nanosword | -3/Research | Extracted Recoil Nullifier | -2/Research | Extracted Arm. Heavy Treads | -2/Research | Extracted Impulse Thruster | -2/Research | Extracted Exp. Core Analyzer | -2/Research | Scanalyzed Imp. Remote Datajack | -2/Research | Scanalyzed Fusion Bomb Launcher | -2/Research | Scanalyzed Imp. Remote Shield | -2/Research | Extracted Cld. Antigrav System | -1/Access | Scanalyzed Robot Schematics ------------------ A-02 Transporter | -7/Factory | Hacked Fabricated ------------ Gravmag Array | x1 | -7/Factory Gravmag Array | x1 | -7/Factory Linear Gravjet | x2 | -7/Factory Imp. Hacking Suite | x1 | -7/Factory Imp. Hacking Suite | x1 | -7/Factory Mic. Fission Core | x2 | -7/Factory Adv. System Shield | x1 | -7/Factory | Preloaded Gravmag Array | x1 | -7/Factory Adv. System Restoration Module | x2 | -7/Factory Adv. System Shield | x1 | -7/Factory Mic. Fission Core | x2 | -6/Factory Adv. System Restoration Module | x2 | -6/Factory Adv. Shield Generator | x2 | -6/Factory Adv. Hacking Suite | x1 | -6/Factory Adv. System Restoration Module | x2 | -6/Factory Gui. EMP Blaster | x1 | -6/Factory Mic. Antimatter Reactor | x2 | -5/Factory HERF Cannon | x2 | -5/Factory Quantum Reactor | x2 | -5/Factory | Preloaded Adv. System Restoration Module | x2 | -5/Factory Centrium Heavy Treads | x1 | -5/Factory Adv. Energy Well | x1 | -5/Factory Imp. Terrain Scanner | x2 | -5/Factory Centrium Medium Armor Plating | x1 | -5/Factory Adv. Hacking Suite | x1 | -5/Factory Adv. Energy Well | x1 | -5/Factory Centrium Heavy Treads | x1 | -5/Factory Mic. Antimatter Reactor | x2 | -5/Factory Exp. Energy Well | x1 | -5/Factory Lrn. Sensor Array | x2 | -5/Factory Imp. Linear Gravjet | x2 | -4/Factory Lrn. Terrain Scanner | x2 | -4/Factory Enh. Nova Cannon | x2 | -3/Research | Preloaded Com. HERF Cannon | x1 | -3/Research Exp. System Shield | x1 | -3/Research Adv. Hacking Suite | x1 | -3/Research Exp. Core Analyzer | x1 | -1/Access Alien Tech Used ----------------- Integrated Reactor Achievements -------------- 50k Club Great Explorer Shocking Conclusion Challenges ------------ None Game ------ Seed ScatterTowerLegs Manual? 0 Play Time 13:03:11 Cumulative 177.5 hours Start 2024.11.04 @ 21:01:03 End 2024.11.15 @ 08:07:59 Sessions 47 Manual Loads 0 Difficulty Rogue Special Mode None Game No. 107 Rogue 71 Adventurer 36 Explorer 0 Win Type - Total 3 Types 2/0/0/1/0/0/0/0/0 Lore% 56 Gallery% 65 Achievement% 57 Wizard Run 0 Options --------- Layout 1 ASCII 0 Keyboard 0 Movement Numpad Keybinds 0 Fullscreen 1 Font 48/Smallcaps Map View 50x35 Zoom Use 0% Tactical HUD 1 Map Filters NONE Filters NONE Steam 1 RUN: 9cad66ca-7ff1-4e02-a398-5ab2c964ac18